{"text_format":"1","workbook":"xlsx","n_sheets":18,"sheets":["Einf.","Adressen","Geburtstage","Spenden ges.","Ämter ","Vorstand","ehem. Vorstände","off. Ve.","Priv. Ver.","Ausw PA","Gr. Ver.","Gr. Damenbet.","Struk. Ver.","Vortr.-Damenbet.","Gästeb.","Merk-Würdiges","ehemalige","wichtige MV"],"not_rendered":{"charts":3,"images":10,"macros":1,"external_links":0,"defined_names":46,"comments":3,"pivot_tables":0},"unopened":[],"bounds":{"document_bytes":16777216,"sheet_cells":100000,"rows_first":2000,"rows_last":500,"rows_between":2000,"halvings":0,"cell_chars":16384,"cell_head_chars":4096},"cells_cut":0,"cells_raw":0,"read":"whole","date_system":"1900"}

{"sheet":"Einf.","index":0,"n_rows":32,"n_cols":3,"rows_kept":32,"cut":false,"hidden":false,"merged":[]}
[null,"Horst-Günter Krause/Lutz Martiny"]
[]
[]
[null,"Liebe Lionsfreunde,"]
[]
[null,"anläßlich unseres 25-jährigen Jubiläums hat Horst-Günter Krause die Club-Unterlagen gelesen,"]
[null,"nach ihm wesentlich erscheinenden Gesichtspunkten ausgewertet und aufbereitet."]
[null,"Diese Tabellen hat er bis zum 15.7.2018 ergänzt. Seitdem werden die wesentlichen Blätter von "]
[null,"Lutz Martiny , die Spenden vom Schatzmeister, jeweils jährlich ergänzt. "]
[null,null,"Die Mappe enthält folgende Blätter:"]
[]
[null,null,"Tabelle und Grafik Stammdaten und  Alterstruktur"]
[null,null,"Tabelle Amtsinhaber (P, S, SCH, A, C) von der Gründung bis zum Lionsjahr 2021/2022"]
[null,null,"Tabelle Offizielle Veranstaltungen (mit Filtermöglichkeit)"]
[null,null,"Tabelle Private Veranstaltungen (mit Filtermöglichkeit)"]
[null,null,"Tabelle mit Auswertung der Privaten Einladungen "]
[null,null,"Grafische Darstellung der Struktur unserer Veranstaltungen"]
[null,null,"Grafische Darstellung der Beteiligung unserer Damen an offiziellen Veranstaltungen"]
[null,null,"Tabelle Struktur der Veranstaltungen"]
[null,null,"Tabelle Vorträge je Lionsfreund und Damenbeteiligung je Jahr "]
[null,null,"Einige Seiten aus dem ersten Gästebuch"]
[null,null,"Einige Besonderheiten aus dem Club \"Merk-Würdiges\""]
[]
[]
[null,null,"Tabelle der Spenden "]
[]
[]
[null,"Horst-Günter hat alle Seiten der Gästebücher fotografiert und als Bilddateien festgehalten,"]
[null,"die er bei Interesse auf einer CD zur Verfügung stellen kann."]
[null,"(Auflösung der Bilder 1280x854p, Dateigröße 96MB),"]
[]
[null,"Wir hoffen, daß diese Unterlagen für \"Geschichtsforscher\" hilfreich sind. "]

{"sheet":"Adressen","index":1,"n_rows":51,"n_cols":18,"rows_kept":51,"cut":false,"hidden":false,"merged":[]}
["Nr","Name","Vorname","Titel","Beruf","Ehefrau/Partnerin","Anrede","Geb.-Datum","Str","PLZ","Ort","Tel. priv.","Tel. d.","Mobil","E-mail 1","Email 2","Inter. MGL-Nr.","S-Mandat"]
[1,"Ammenwerth","Richard","Dr.med.","Selbst. Arzt für Orthopädie","Marlies","Herrn","1945-01-26","Hudeweg 31",33100,"Paderborn","05251-35622","05251-23794","0170-3232737","Richard@Ammenwerth.de",null,"754548"]
[2,"Auffenberg","Christian",null,"Rechtsanwalt und Notar","Susanne","Herrn","1975-05-08","Fechtelerstraße 12 D",33098,"Paderborn","05251-5439380","05251-22512","0173-8975021","Christian.Auffenberg@gmx.de","c.auffenberg@rechtsanwalt-auffenberg.de",544820,"LC045"]
[3,"Bartels*","Günther","Dipl.-Ing.","Ruhestand","Sabi","Herrn","1935-08-01","Wilseder Weg 21",33102,"Paderborn","05251-4694",null,null,"sabi-guenther-bartels@gmx.de",null,"754549"]
[4,"Baur","Martin","Dr. med.","Chefarzt der Anästhesie Vincenz-Krankenhaus","Dr. Kirsten Baur-Seack","Herrn","1968-05-11","Peckelsheimer Weg 29",33100,"Paderborn","05251-1473632","05251-86-1585","0171-1765117","baur@gmx.com",null,"3834209"]
[5,"Bee","Peter","Dipl.-Ing.","Architekt","Stefanie","Herrn","1971-09-11","Hermann-Löns-Str. 25 A",33104,"Paderborn","05254-9279366","05254-9304580","0176-10332794","Bee@planbee-architekten.de",null,"3897233"]
[6,"Brors","Dominik","Priv.-Doz. Dr. med.","HNO Arzt","Prof. Dr. Maria Schäfers","Herrn","1969-06-28","Schorlemerstr. 24",33098,"Paderborn","05251-1488345",null,null,"drbrors@t-online.de",null,"3399470"]
[7,"Deter","Gerhard ","Priv. Doz Dr. jur. Dr. phil. ",null,"Dr. Anne","Herrn","1950-04-20","Graf-Sporck-Str. 2",33129,"Delbrück  ","05250-53383",null,null,"Gerhard.Deter@t-online.de",null,2776013,"LC044"]
[8,"Feldmann*","Ulrich",null,"Oberstaatsanwalt a.D.","Brigitte","Herrn","1936-06-25","Sylter Weg 10",33102,"Paderborn","05251-48743",null,"0171-7418434","uba.feldmann@web.de",null,"754551"]
[9,"Friemuth","Klaus","Dipl.-Ing.","Geschäftsf. Ges. Friemuth GmbH&Co.KG Hoch- u. Tiefbau","Marlies","Herrn","1939-04-04","Annette-von-Droste-Str. 26",33098,"Paderborn","05251-61101","05251-1772-22","0163-8817730","info@friemuth.de",null,"754552"]
[10,"Hollmann","Benjamin","Dipl.Wirtschaftsinformatiker","Weidmüller in Detmold","Mona","Herrn","1981-06-30","Dörener Weg 115",33100,"Paderborn",52511428283,"05231-14-292527","0171-2626385","benhollmann@gmx.de",null,"4596035"]
[11,"Jacoby","Franz",null,"Geschaftsf. Ges. TAP-Design Brakel","Doris","Herrn","1947-04-16","Westernstr. 1",33098,"Paderborn","05251-22469","05272-602-124","0172-8096962","franz.jacoby@tap-holding.de",null,"754555"]
[12,"Joepen","Horst","Dipl.-Ing.",null,"Gabi","Herrn","1957-11-25","Arnikaweg 57",33100,"Paderborn","05251-65897","05251-500540","0171-5501496","horst.joepen@joepen-itconsult.com",null,"754556"]
[13,"Käter","Ansgar",null,"Vorstandsvorsitzender Volksbank Paderborn","Rita Brink-Käter","Herrn","1971-03-12","Gotenweg 12",33100,"Paderborn","05251-5456100",null,"0151-67526995","Akaeter@web.de",null,"4820089"]
[14,"Keysers*","Ludger",null,"GF I2 Ingenieurgemeinschaft Industrieboden GmbH","Silvia","Herrn","1960-05-29","Amselhainstraße 71",14612,"Falkensee",null,null,"0171-7304222","Ludger@keysers.de","keysers@i2-industrieboden.de","2479166"]
[15,"Krause*","Horst-Günter","Dipl.-Kfm.","Vorstandsmitglied a.D. PESAG AG","Dorit","Herrn","1940-09-11","Joseph-Brockmann-Weg 3",33102,"Paderborn","05251-310885",null,"0172-5233463","horst-guenter.krause@paderborn.com",null,"759935"]
[16,"Krings","Wolfgang","Priv.-Doz. Dr.med.","Chefarzt d. Radiologie Vincenz-Krankenhaus a.D.","Maria","Herrn","1955-03-25","Bergheimer Weg 18",33100,"Paderborn","05251-66248","05251-861551","0173-5351618","w.krings@paderborn.com",null,"759936"]
[17,"Kühle","Martin","LL.M.","Rechtsanwalt und Wirtschaftsmediator","Angela","Herrn","1967-12-09","Am Glockenbusch 3",33106,"Paderborn","05254-6496350","05253-342756","0170-2096202","m.kuehle@gmx.de",null,"5203009"]
[18,"Lücke*","Roland","Dr.","Ruhestand","Ingrid Willaschek","Herrn","1942-05-26","Deipenweg 32",33104,"Paderborn","05254-12633",null,null,"rol.cke@t-online.de",null,"759939"]
[19,"Martiny","Lutz","Dr.- Ing.",null,null,"Herrn","1943-02-04","Magnolienweg 2",33129,"Delbrück-Hagen","05250-932039",null,"0171-5031791","lutz@martiny.biz",null,"2555306"]
[20,"Nöcker","Dietrich","Dr.med.","Chefarzt d. Radiologie Brüder-Krankenhaus a.D.","Uta","Herrn","1942-09-26","Corveyer Weg 26",33098,"Paderborn","05251-64173","05251-7021300","0176-66696448","d_noecker@t-online.de",null,"759941"]
[21,"Oberheide","Henning",null,"Geschäftsf. d. Einzelhandelsverbandes a.D.",null,"Herrn","1947-11-23","Im Lichtenfelde 72",33100,"Paderborn","05251-61776",null,null,"henning.oberheide@t-online.de",null,"759942"]
[22,"Ortner","Gerhard E.","Uni.-Prof. Dr. Dr.","Uni-Prof. Fernuni-Hagen","Renate","Herrn","1940-09-18","Busdorfmauer 36",33098,"Paderborn","05251-25962","05251-13299-0",null,"Ortner@medienhaus-paderborn.de",null,"759943"]
[23,"Plonka","Marek",null,null,"Ina","Herrn","1966-07-15","Dedinghauser Weg 10",33189,"Schlangen","05252-973649","05252-7344","0172-5263628","marek.plonka@gmx.de",null,"3504725"]
[24,"Plückebaum*","Andreas",null,null,"Ursula","Herrn","1966-12-16","Anton-Hartmann-Str. 9",33106,"Paderborn",null,null,"0172-5241477","info@cafe-plueckebaum.de",null,"5070911"]
[25,"Porcelli","David",null,"Weinhändler",null,"Herrn","1981-07-12","Hermannstraße 21",33142,"Büren","02951-9385782","02951-5567","0152-06416729","David@Porcelli.de",null,6049529,"LC048"]
[26,"Preising","Andreas",null,"Leiter Liegenschaftsamt - Stadt Paderborn i.R.","Gisela","Herrn","1958-10-09","Steinbrede 9",33106,"Paderborn-Elsen","05254-60225","05251-881563","0171-4462285","andreas.preising@gmx.de"," A.Preising@Paderborn.de","759944"]
[27,"Reller","Ralf","Dipl.Kfm.","Inhaber Automobilie Reller","Diana Metten-Reller","Herrn","1971-06-28","Hüfferweg 11",33100,"Paderborn","05251-67661","05251-740040","015155055056","ralf.reller@reller-automobile.de",null,"5086100"]
[28,"Richard","Hans Albert","Prof. Dr. Ing.","Uni-Prof. Uni Pb","Silvia","Herrn","1949-09-22","Bergheimer Weg 24",33100,"Paderborn","05251-65952","05251-602203","0174-2084806","Richard@fam.uni-paderborn.de",null,"759945"]
[29,"Rimrod","Fredrik",null,"Apotheker","Franziska","Herrn","1980-08-07","Sander-Wietfeld-Ring 35",33102,"Paderborn","05251-5431533","05251-280824",null,"fredrik_rimrod@web.de",null,"4130286"]
[30,"Schmidt","Hansjörg","Dr.med.dent.","Selbst. Zahnarzt","Ute Sauer","Herrn","1960-05-09","Kaunitzer Str. 10",33161,"Hövelhof","05294-560","05257-3280","0171-5081582","HJZahn@aol.com",null,"759946"]
[31,"Schneider","Martin","Prof. Dr.","Uni-Prof. Uni Pb","Sandra","Herrn","1967-09-15","Schrieweshof 28",33098,"Paderborn","05254-9387693","05251-602929","01576-9135197","martin.schneider@upb.de"]
[32,"Schreckenberg","Franz F.","Dipl.-Btw.","Geschäftsf. Schreckenberg GmbH & Co. KG","Susanne","Herrn","1962-07-08","Dörener Weg 111",33100,"Paderborn","05251-5439458",null,"0172-5214031","Franz.F@Schreckenberg.de",null,"765323"]
[33,"Stecher","Martin",null,"Informatiker","Bogusia","Herrn","1967-12-05","Hünenweg 15",33104,"Paderborn","05254-922456","05251-8717-525","0170-7864700","Martin@Martin-Stecher.de","martin_stecher@mcafee.com",5433019,"LC047"]
[34,"Tack","Josef",null,"Hauptgeschäftsf. Kreishandwerkerschaft Pb","Gerlinde Schnückel","Herrn","1945-11-10","Brockensklee 16",33154,"Salzkotten","02955-748944",null,"0172-3918080","Josef.Tack@web.de",null,"765324"]
[35,"Thiele","Reinhard",null,"Geschäftsf. RTS Blumen Export u. Import Salzkotten","Gisela","Herrn","1940-09-01","Am Stadtgraben 37",33154,"Salzkotten","05258-3331","05258-8853-55","0171-4300359","Thiele@rts-flowers.com",null,"765325"]
[36,"Thönissen*","Wolfgang","Prof. Dr.","i.R.","Ursula","Herrn","1955-09-28","Lachenmoos 4",79877,"Friedenweiler","07651-8079918",null,"0170-3119420","Prof.Thoenissen@moehlerinstitut.de"]
[37,"Vollbach","Lothar",null,"Inh. Hörgeräte Vollbach","Marita","Herrn","1954-01-12","Am Kalberdanz 14",33102,"Paderborn","05251-407780","05251-27480","0171-5310190","Lothar.Vollbach@t-online.de",null,"765327"]
[38,"von Westphalen","Raban","Prof. Dr.","Politikwissenschaftler i. R.","Gerlinde  ","Graf","1945-12-17","Warburger Str. 29 a",33098,"Paderborn","05251-7777040",null,null,"von-westphalen@t-online.de ",null,5379628,"LC046"]
[39,"Wiedeking","Antonius",null,"Selbst. Steuerberater u. v.BP.","Claudia ","Herrn","1952-01-13","Willi-Lucas-Weg 5",33100,"Paderborn","05251-509410",null,null,"A.Wiedeking@paderborn.com",null,"765329"]
[40,"Wieneke","Meinolf",null,"Kath. Pfarrer, Pfarrei St. Michael i.R.",null,"Herrn","1942-03-01","Husenerstr. 91 (App. 19)",33100,"Paderborn","05251-4175562",null,null,"Meinolf.Wieneke@paderborn.com",null,"765330"]
[]
[]
[{"$f":"COUNTA(A2:A42)","v":40},"Mitglieder"]
[]
["Legende: * hinter dem Namen bedeutet passives Mitglied"]
[]
["Zur Kontaktpflege:"]
[null,"Henning","Elisabeth"," Im Spiringsfelde 31"," 33098 Paderborn","05251-760622"]
[null,"Johannknecht","Ingrid","Frankfurter Weg 10","Paderborn","05251-7798027",null,null,"mjohannknecht@aol.com"]
[null,"Wellmann","Hans u. Erika","Bergheimer Weg 22","33100 Paderborn","05251 65498",null,null,"hans@familie-wellmann.de"]

{"sheet":"Geburtstage","index":2,"n_rows":65,"n_cols":28,"rows_kept":65,"cut":false,"hidden":false,"merged":[[0,0,0,4],[0,10,0,11],[0,14,0,15],[0,18,0,19],[1,0,1,1],[1,14,1,15]]}
["Stammdaten",null,null,null,null,null,null,null,null,null,"Geburtstage im Jahresverlauf",null,null,null,"Mitglieder",null,null,null,"Altersstruktur ermitteln"]
["G = Gründungsmitglied",null,"Geb.Dat.","Eintritt Carolus","Ehefrau/(Partnerin)",null,2023,null,null,null,"Name","vollendetes Lj.","runde ab 50",null,{"$f":"\"nach Alter Ende \" &G2","v":"nach Alter Ende 2023"},null,null,null,{"$f":"MIN(L4:L43)","v":42},{"$f":"MAX(L4:L43)","v":88}]
[null,null,null,null,null,null,null,null,null,null,null,null,null,null,null,null,null,null,"Alter","Anzahl "]
[null,"Ammenwerth, Richard","1945-01-26",1983,"Marlies",null,"1954-01-12",{"$f":"DAY(G4)","v":12},{"$f":"MONTH(G4)","v":1},{"$f":"YEAR(G4)","v":1954},"Vollbach, Lothar",{"$f":"$G$2-YEAR($C$40)","v":69},{"$f":"IF(L4<50,\"\",IF(VALUE(RIGHT(L4,1))=0,L4,IF(AND(VALUE(RIGHT(L4,1))=5,L4>40),L4,\"\")))","v":""},null,"Hollmann",{"$f":"$G$2-YEAR($C$13)","v":42},{"$f":"C4","v":16463},null,{"$f":"S2","v":42},{"$f":"IF(COUNTIF($L$4:$L$43,S4)>0,COUNTIF($L$4:$L$43,S4),\"\")","v":2}]
[null,"Auffenberg, Christian","1975-05-08",2020,"Susanne",null,"1952-01-13",{"$f":"DAY(G5)","v":13},{"$f":"MONTH(G5)","v":1},{"$f":"YEAR(G5)","v":1952},"Wiedeking, Antonius",{"$f":"$G$2-YEAR($C$42)","v":71},"",null,"Porcelli",{"$f":"$G$2-YEAR($C$29)","v":42},27522,null,{"$f":"S4+1","v":43},1]
[null,"Bartels, Günther","1935-08-01",1993,"Sabi",null,"1945-01-26",{"$f":"DAY(G6)","v":26},{"$f":"MONTH(G6)","v":1},{"$f":"YEAR(G6)","v":1945},"Ammenwerth, Richard",{"$f":"$G$2-YEAR($C$4)","v":78},"",null,"Rimrod",{"$f":"$G$2-YEAR($C$32)","v":43},12997,null,44,""]
[null,"Baur, Martin","1968-05-11",2013,"Kirsten Baur-Seack",null,"1943-02-04",{"$f":"DAY(G7)","v":4},{"$f":"MONTH(G7)","v":2},{"$f":"YEAR(G7)","v":1943},"Martiny, Lutz",{"$f":"$G$2-YEAR($C$22)","v":80},80,null,"Auffenberg",{"$f":"$G$2-YEAR($C$5)","v":48},24969,null,45,""]
[null,"Bee, Peter Wilhelm","1971-09-11",2013,"Stefanie",null,"1942-03-01",{"$f":"DAY(G8)","v":1},{"$f":"MONTH(G8)","v":3},{"$f":"YEAR(G8)","v":1942},"Wieneke, Meinolf",{"$f":"$G$2-YEAR($C$43)","v":81},"",null,"Bee",{"$f":"$G$2-YEAR($C$8)","v":52},26187,null,46,""]
[null,"Brors, Dominik","1969-06-28",2011,"Maria Schäfers",null,"12.03.",12,3,1971,"Käter, Ansgar",{"$f":"$G$2-YEAR($C$17)","v":52},"",null,"Käter",{"$f":"$G$2-YEAR($C$17)","v":52},25382,null,47,""]
[null,"Deter, Gerhard","1950-04-20",2020,"Anne",null,"1955-03-25",{"$f":"DAY(G10)","v":25},{"$f":"MONTH(G10)","v":3},{"$f":"YEAR(G10)","v":1955},"Krings, Wolfgang",{"$f":"$G$2-YEAR($C$19)","v":68},"",null,"Reller",{"$f":"$G$2-YEAR($C$30)","v":52},18373,null,48,1]
["G","Feldmann, Ulrich","1936-06-25",1981,"Brigitte",null,"1939-04-04",{"$f":"DAY(G11)","v":4},{"$f":"MONTH(G11)","v":4},{"$f":"YEAR(G11)","v":1939},"Friemuth, Klaus",{"$f":"$G$2-YEAR($C$12)","v":84},"",null,"Brors",{"$f":"$G$2-YEAR($C$9)","v":54},13326,null,49,""]
["G","Friemuth, Klaus","1939-04-04",1981,"Marlies",null,"16.04.",16,4,1947,"Jacoby, Franz",{"$f":"$G$2-YEAR($C$14)","v":76},{"$f":"IF(L12<50,\"\",IF(VALUE(RIGHT(L12,1))=0,L12,IF(AND(VALUE(RIGHT(L12,1))=5,L12>40),L12,\"\")))","v":""},null,"Baur",{"$f":"$G$2-YEAR($C$7)","v":55},{"$f":"#REF!","v":{"$error":"#REF!"}},null,50,""]
[null,"Hollmann, Benjamin","1981-06-30",2017,"Mona Niggemeyer-Hollmann",null,"20.04.",20,4,1950,"Deter, Gerhard",{"$f":"$G$2-YEAR($C$10)","v":73},"",null,"Kühle",{"$f":"$G$2-YEAR($C$20)","v":56},{"$f":"C14","v":17273},null,51,""]
["G","Jacoby, Franz","1947-04-16",1999,"Doris",null,"09.05",9,5,1960,"Schmidt, Hans-Jörg",{"$f":"$G$2-YEAR($C$33)","v":63},"",null,"Schneider",{"$f":"$G$2-YEAR($C$34)","v":56},{"$f":"C15","v":21149},null,52,3]
[null,"Joepen, Horst","1957-11-25",1981,"Ingrid",null,"2021-05-08",8,5,1975,"Auffenberg, Christian",{"$f":"$G$2-YEAR($C$5)","v":48},"",null,"Stecher",{"$f":"$G$2-YEAR($C$36)","v":56},{"$f":"#REF!","v":{"$error":"#REF!"}},null,53,""]
[null,"Keysers, Ludger","1960-05-29",2006,"Silvia",null,"1968-05-11",{"$f":"DAY(G16)","v":11},{"$f":"MONTH(G16)","v":5},{"$f":"YEAR(G16)","v":1968},"Baur, Martin",{"$f":"$G$2-YEAR($C$7)","v":55},55,null,"Plonka",{"$f":"$G$2-YEAR($C$26)","v":57},{"$f":"#REF!","v":{"$error":"#REF!"}},null,54,1]
[null,"Käter, Ansgar","1971-03-12",2017,"Rita Brink-Käter",null,"1942-05-26",{"$f":"DAY(G17)","v":26},{"$f":"MONTH(G17)","v":5},{"$f":"YEAR(G17)","v":1942},"Lücke, Roland",{"$f":"$G$2-YEAR($C$21)","v":81},"",null,"Plückebaum",{"$f":"$G$2-YEAR($C$27)","v":57},{"$f":"#REF!","v":{"$error":"#REF!"}},null,55,1]
["G","Krause, Horst-Günter","1940-09-11",1981,"Dorit",null,"1960-05-29",{"$f":"DAY(G18)","v":29},{"$f":"MONTH(G18)","v":5},{"$f":"YEAR(G18)","v":1960},"Keysers, Ludger",{"$f":"$G$2-YEAR($C$16)","v":63},"",null,"Schreckenberg",{"$f":"$G$2-YEAR($C$35)","v":61},{"$f":"C19","v":20173},null,56,3,null,null,null,null,null,null,null,{"$f":"IF(AA18<50,\"\",IF(VALUE(RIGHT(AA18,1))=0,AA18,IF(AND(VALUE(RIGHT(AA18,1))=5,AA18>40),AA18,\"\")))","v":""}]
[null,"Krings, Wolfgang","1955-03-25",1997,"Maria",null,"1936-06-25",{"$f":"DAY(G19)","v":25},{"$f":"MONTH(G19)","v":6},{"$f":"YEAR(G19)","v":1936},"Feldmann, Ulrich",{"$f":"$G$2-YEAR($C$11)","v":87},"",null,"Keysers",{"$f":"$G$2-YEAR($C$16)","v":63},24815,null,57,2]
[null,"Kühle, Martin","1967-12-09",2019,"Angela",null,"1965-06-28",{"$f":"DAY(G20)","v":28},{"$f":"MONTH(G20)","v":6},1969,"Brors, Dominik",{"$f":"$G$2-YEAR($C$9)","v":54},"",null,"Schmidt",{"$f":"$G$2-YEAR($C$33)","v":63},15487,null,58,""]
[null,"Lücke, Roland","1942-05-26",1981,"Ingrid (Willaschek)",null,"28.06.",28,6,1971,"Reller, Ralf",{"$f":"$G$2-YEAR($C$30)","v":52},"",null,"Preising",{"$f":"$G$2-YEAR($C$28)","v":65},15741,null,59,""]
[null,"Martiny, Lutz","1943-02-04",1994,null,null,"1981-06-30",{"$f":"DAY(G22)","v":30},{"$f":"MONTH(G22)","v":6},{"$f":"YEAR(G22)","v":1981},"Hollmann, Benjamin",{"$f":"$G$2-YEAR($C$13)","v":42},"",null,"Joepen",{"$f":"$G$2-YEAR($C$15)","v":66},15610,null,60,""]
["G","Nöcker, Dietrich","1942-09-26",1981,"Uta",null,"1962-07-08",8,7,1962,"Schreckenberg, Franz",{"$f":"$G$2-YEAR($C$35)","v":61},"",null,"Krings",{"$f":"$G$2-YEAR($C$19)","v":68},{"$f":"C24","v":17494},null,{"$f":"S22+1","v":61},1]
[null,"Oberheide, Henning","1947-11-23",1981,null,null,"2023-07-12",12,7,1981,"Porcelli David",{"$f":"$G$2-YEAR($C$29)","v":42},null,null,"Vollbach",{"$f":"$G$2-YEAR($C$40)","v":69},{"$f":"C26","v":24303},null,62,""]
[null,"Ortner, Gerhard E.","1940-09-18",1985,"Renate",null,"1966-07-15",15,7,1966,"Plonka, Marek",{"$f":"$G$2-YEAR($C$26)","v":57},"",null,"Wiedeking",{"$f":"$G$2-YEAR($C$42)","v":71},{"$f":"C28","v":21467},null,63,2]
[null,"Plonka, Marek","1966-07-15",2011,"Ina",null,"1935-08-01",1,8,1935,"Bartels, Günther",{"$f":"$G$2-YEAR($C$6)","v":88},"",null,"Deter",{"$f":"$G$2-YEAR($C$10)","v":73},{"$f":"C30","v":26112},null,64,""]
[null,"Plückebaum, Andreas","1966-12-16",2019,"Ursula",null,"1980-08-07",7,8,1980,"Rimrod, Fredrik",{"$f":"$G$2-YEAR($C$32)","v":43},"",null,"Richard",{"$f":"$G$2-YEAR($C$31)","v":74},18163,null,65,1]
[null,"Preising, Andreas","1958-10-09",2001,"Gisela",null,"1940-08-31",31,8,1940,"Thiele, Reinhard",{"$f":"$G$2-YEAR($C$38)","v":83},"",null,"Jacoby",{"$f":"$G$2-YEAR($C$14)","v":76},29440,null,66,1]
[null,"Porcelli, David","1981-07-12",2022,null,null,"1940-09-11",11,9,1940,"Krause, Horst-Günter",{"$f":"$G$2-YEAR($C$18)","v":83},"",null,"Oberheide",{"$f":"$G$2-YEAR($C$24)","v":76},22045,null,67,""]
[null,"Reller, Ralf","1971-06-28",2019,"Metten-Reller, Diana",null,"1971-09-11",11,9,1971,"Bee, Peter Wilhelm",{"$f":"$G$2-YEAR($C$8)","v":52},"",null,"Ammenwerth",{"$f":"$G$2-YEAR($C$4)","v":78},{"$f":"C35","v":22835},null,{"$f":"S29+1","v":68},2]
[null,"Richard, Hans Albert","1949-09-22",1991,"Sylvia",null,"2023-09-15",15,9,2023,"Schneider, Martin",{"$f":"$G$2-YEAR($C$34)","v":56},{"$f":"IF(L32<50,\"\",IF(VALUE(RIGHT(L32,1))=0,L32,IF(AND(VALUE(RIGHT(L32,1))=5,L32>40),L32,\"\")))","v":""},null,"Tack",{"$f":"$G$2-YEAR($C$37)","v":78},{"$f":"C36","v":24811},null,{"$f":"S30+1","v":69},1]
[null,"Rimrod, Fredrik","1980-08-07",2015,"Franziska",null,"1940-09-18",{"$f":"DAY(G32)","v":18},{"$f":"MONTH(G32)","v":9},{"$f":"YEAR(G32)","v":1940},"Ortner, Gerhard E.",{"$f":"$G$2-YEAR($C$25)","v":83},null,null,"von Westphalen",{"$f":"$G$2-YEAR($C$41)","v":78},{"$f":"C37","v":16751},null,{"$f":"S31+1","v":70},""]
[null,"Schmidt, Hans-Jörg","1960-05-09",2002,"Ute (Sauer)",null,"1949-09-22",22,9,1949,"Richard, Hans Albert",{"$f":"$G$2-YEAR($C$31)","v":74},{"$f":"IF(L33<50,\"\",IF(VALUE(RIGHT(L33,1))=0,L33,IF(AND(VALUE(RIGHT(L33,1))=5,L33>40),L33,\"\")))","v":""},null,"Martiny",{"$f":"$G$2-YEAR($C$22)","v":80},{"$f":"C38","v":14854},null,71,1]
[null,"Schneider, Martin","1967-09-15",2023,null,null,"1942-09-26",26,9,1942,"Nöcker, Dietrich",{"$f":"$G$2-YEAR($C$23)","v":81},{"$f":"IF(L34<50,\"\",IF(VALUE(RIGHT(L34,1))=0,L34,IF(AND(VALUE(RIGHT(L34,1))=5,L34>40),L34,\"\")))","v":""},null,"Lücke",{"$f":"$G$2-YEAR($C$21)","v":81},{"$f":"#REF!","v":{"$error":"#REF!"}},null,{"$f":"S33+1","v":72},""]
[null,"Schreckenberg, Franz","1962-07-08",1997,"Susanne",null,"1955-09-28",28,9,1955,"Thönissen, Wolfgang",{"$f":"$G$2-YEAR($C$39)","v":68},null,null,"Nöcker",{"$f":"$G$2-YEAR($C$23)","v":81},{"$f":"C40","v":19736},null,{"$f":"S34+1","v":73},1]
["G","Stecher, Martin","1967-12-05",2020,"Bogusia",null,"1958-10-09",9,10,1958,"Preising, Andreas",{"$f":"$G$2-YEAR($C$28)","v":65},{"$f":"IF(L36<50,\"\",IF(VALUE(RIGHT(L36,1))=0,L36,IF(AND(VALUE(RIGHT(L36,1))=5,L36>40),L36,\"\")))","v":65},null,"Wieneke",{"$f":"$G$2-YEAR($C$43)","v":81},null,null,74,{"$f":"IF(COUNTIF($L$4:$L$43,S36)>0,COUNTIF($L$4:$L$43,S36),\"\")","v":1}]
[null,"Tack, Josef","1945-11-10",1981,"Gerlinde",null,"1945-11-10",10,11,1945,"Tack, Josef",{"$f":"$G$2-YEAR($C$37)","v":78},"",null,"Krause",{"$f":"$G$2-YEAR($C$18)","v":83},null,null,{"$f":"S36+1","v":75},""]
[null,"Thiele, Reinhard","1940-08-31",1986,"Gisela",null,"1947-11-23",23,11,1947,"Oberheide, Henning",{"$f":"$G$2-YEAR($C$24)","v":76},"",null,"Ortner",{"$f":"$G$2-YEAR($C$25)","v":83},null,null,{"$f":"S37+1","v":76},2]
[null,"Thönissen, Wolfgang","1955-09-28",2001,"Ursula",null,"1957-11-25",25,11,1957,"Joepen, Horst",{"$f":"$G$2-YEAR($C$15)","v":66},"",null,"Thiele",{"$f":"$G$2-YEAR($C$38)","v":83},null,null,{"$f":"S38+1","v":77},""]
[null,"Vollbach, Lothar","1954-01-12",1994,"Marita",null,"05.12.",5,12,1967,"Stecher, Martin",{"$f":"$G$2-YEAR($C$36)","v":56},"",null,"Friemuth",{"$f":"$G$2-YEAR($C$12)","v":84},null,null,78,3]
[null,"von Westphalen, Raban","1945-12-17",2020,"Gerlinde",null,"09.12.",9,12,1967,"Kühle, Martin",{"$f":"$G$2-YEAR($C$20)","v":56},"",null,"Feldmann",{"$f":"$G$2-YEAR($C$11)","v":87},null,null,{"$f":"S40+1","v":79},""]
[null,"Wiedeking, Antonius","1952-01-13",1987,"Claudia ",null,"16.12.",16,12,1966,"Plückebaum, Andreas",{"$f":"$G$2-YEAR($C$27)","v":57},"",null,"Bartels",{"$f":"$G$2-YEAR($C$6)","v":88},null,null,80,1]
[null,"Wieneke, Meinolf","1942-03-01",1988,null,null,"17.12.",17,12,1945,"von Westphalen, Raban",{"$f":"$G$2-YEAR($C$41)","v":78},"",null,null,null,null,null,81,3]
[null,null,null,null,null,null,null,null,null,null,null,null,null,null,null,null,null,null,82,""]
[{"$f":"COUNTIF(A4:A37,\"G\")","v":6},null,{"$f":"\"Das Durchschnittsalter unserer \"&B45&\" Mitglieder beträgt Ende \"&G2&\"   \"   &FIXED(P45,1)&\" Jahre\"","v":"Das Durchschnittsalter unserer  Mitglieder beträgt Ende 2023   67,0 Jahre"},null,null,null,null,null,null,null,null,null,null,null,"Durschnitt",{"$f":"AVERAGE(P4:P42)","v":66.974358974358978},null,null,83,3]
[null,{"$f":"COUNTA(B4:B43)","v":40},"Und das mittlere alter (Median) beträgt Ende 2022",null,null,null,{"$f":"P46","v":68},"Jahre",null,null,null,null,null,null,"Median",{"$f":"MEDIAN(P4:P42)","v":68},null,null,84,1]
[null,null,null,null,null,null,null,null,null,null,null,null,null,null,null,null,null,null,85,""]
[null,null,null,null,null,null,null,null,null,null,null,null,null,null,null,null,null,null,86,""]
[null,null,null,null,null,null,null,null,null,null,null,null,null,null,null,null,null,null,87,1]
[null,null,null,null,"Carolus-Altersstruktur Ende",null,{"$f":"G2","v":2023},null,null,null,null,null,null,null,null,null,null,null,88,1]
[null,null,null,null,null,null,null,null,null,null,null,null,null,null,null,null,null,null,89,""]
[null,null,null,null,null,null,null,null,null,null,null,null,null,null,null,null,null,null,90,""]
[null,null,null,null,null,null,null,null,null,null,null,null,null,null,null,null,null,null,91,""]
[null,null,null,null,null,null,null,null,null,null,null,null,null,null,null,null,null,null,92,""]
[null,null,null,null,null,null,null,null,null,null,null,null,null,null,null,null,null,null,93,""]
[null,null,null,null,null,null,null,null,null,null,null,null,null,null,null,null,null,null,94,""]
[null,null,null,null,null,null,null,null,null,null,null,null,null,null,null,null,null,null,95,""]
[null,null,null,null,null,null,null,null,null,null,null,null,null,null,null,null,null,null,96,""]
[null,null,null,null,null,null,null,null,null,null,null,null,null,null,null,null,null,null,97,""]
[null,null,null,null,null,null,null,null,null,null,null,null,null,null,null,null,null,null,98,""]
[null,null,null,null,null,null,null,null,null,null,null,null,null,null,null,null,null,null,99,""]
[null,null,null,null,null,null,null,null,null,null,null,null,null,null,null,null,null,null,100,""]
[null,null,null,null,null,null,null,null,null,null,null,null,null,null,null,null,null,null,101,""]
[]
[null,null,null,null,null,null,null,null,null,null,null,null,null,null,null,null,null,null,null,{"$f":"SUM(T4:T64)","v":40}]

{"sheet":"Spenden ges.","index":3,"n_rows":191,"n_cols":13,"rows_kept":191,"cut":false,"hidden":false,"merged":[[0,0,0,6],[7,5,7,6]]}
["Spenden des Lions-Clubs Paderborn Carolus"]
[1.95581,null,null,{"$f":"SUM(D4:D5)","v":537934.75552032155}," gesamt "]
[]
[null,null,"davon bis 1995",{"$f":"SUM(D13:D41)","v":75554.675556419083},"Spenden über die Gesellschaft der Freunde Lions"]
[null,null,null,{"$f":"SUM(D43:D266)","v":462380.07996390242},"Spenden des Fördervereins "]
[null,null,null,"darin"]
[null,null,null,{"$f":"SUMIF(E43:E234,E7,D43:D234)","v":99963.384960297786},"Missionswerk der Franziskaner"]
["Spenden  gemäß den Protokollen der Mitgliederversammlungen",null,null,null,null,"je Kalenderjahr gesamt"]
[null,null,null,1.95581]
[null,null,"Betrag","€","Empfänger",null,"€"]
["Teilergebnisse",null,null,{"$f":"SUBTOTAL(9,D13:D191,E13:E191)","v":537934.75552032155}]
[null,null,null,null,null,null,null,"Lionsjahr"]
["1981-12-17",{"$f":"YEAR(A13)","v":1981},600,{"$f":"C13/$A$2","v":306.77826578246351},"Kinderheim für Sozialweisen in Scherfede",1981,{"$f":"SUMIF($B$13:$B$129,F13,$D$13:$D$129)","v":306.77826578246351}]
["1982-06-01",1982,900,460.16739867369529,"Stadt Paderborn für bedürftige Bürger",1982,{"$f":"SUMIF($B$13:$B$129,F14,$D$13:$D$129)","v":460.16739867369529}]
["1983-01-12",1983,6000,3067.7826578246354,"Deutsches Komitee Notärzte e.V. Köln",1983,{"$f":"SUMIF($B$13:$B$129,F15,$D$13:$D$129)","v":3067.7826578246354}]
["1984-01-23",1984,6000,3067.7826578246354,"Komitee Cap Anamur / Deutsche Notärzte e.V. Köln",1984,{"$f":"SUMIF($B$13:$B$129,F16,$D$13:$D$129)","v":3067.7826578246354}]
["1985-06-28",1985,5000,2556.4855481871959,"Verein zur Hilfe Geistigbehinderter e.V. Paderborn",1985,{"$f":"SUMIF($B$13:$B$129,F17,$D$13:$D$129)","v":2556.4855481871959}]
["1986-04-09",1986,4000,2045.1884385497569,"Deutsche Multiple Sklerose Gesellschaft e.V. Paderborn"]
["1986-04-09",1986,4000,2045.1884385497569,"Suchtkrankenhilfe Paderborn e.V."]
["1986-10-15",1986,2000,1022.5942192748785,"Menschen für Menschen e.V. (K.-H. Böhm)",1986,{"$f":"SUMIF($B$13:$B$129,F20,$D$13:$D$129)","v":5112.9710963743928}]
["1987-01-28",1987,10000,5112.9710963743919,"Deutsches Afghanistan Komitee e.V. Bonn",1987,{"$f":"SUMIF($B$13:$B$129,F21,$D$13:$D$129)","v":5112.9710963743919}]
["1988-02-22",1988,10000,5112.9710963743919,"Deutsche Leukämie Forschungshilfe Aktion krebskranke Kinder"]
["1988-10-06",1988,9000,4601.6739867369524,"Afrikamissionare \"Weisse Väter\", Köln",1988,{"$f":"SUMIF($B$13:$B$129,F23,$D$13:$D$129)","v":9714.6450831113434}]
["1989-04-25",1989,10000,5112.9710963743919,"Kinder Aids-Hilfe e.V. Düsseldorf"]
["1989-05-08",1989,9000,4601.6739867369524,"Eselskarren für Mali"]
[1989,1989,1975.58,1010.1083438575321,"Medikamentenspende für Polen",1989,{"$f":"SUMIF($B$13:$B$129,F26,$D$13:$D$129)","v":10724.753426968875}]
[1990,{"$f":"A27","v":1990},3996.6,2043.4500283769894,"Aktion Kinderheim in Geltow/DDR"]
[1990,1990,2000,1022.5942192748785,"Kindernahrung für Rumänien"]
[1990,1990,1734.4,886.79370695517457,"Rumänienhilfe"]
[1990,1990,960.01,490.85033822303802,"Aktion Kinderheim in Geltow/DDR"]
[1990,1990,200,102.25942192748784,"Deutsche Liga zur Bekämpfung der Atemwegserkrankungen",1990,{"$f":"SUMIF($B$13:$B$129,F31,$D$13:$D$129)","v":4545.9477147575681}]
[1991,1991,100,51.129710963743918,"Dr. Nöcker/UdSSR",1991,{"$f":"SUMIF($B$13:$B$129,F32,$D$13:$D$129)","v":51.129710963743918}]
[1992,1992,500,255.64855481871962,"Tag der Psychiatrie"]
[1992,1992,1000,511.29710963743923,"Sight First",1992,{"$f":"SUMIF($B$13:$B$129,F34,$D$13:$D$129)","v":766.94566445615885}]
[1993,1993,22344,11424.422617738941,"Inkubator Rumänien (Rechnung Drägerwerke)"]
[1993,1993,6000,3067.7826578246354,"Komitee \"Ärzte Dritte Welt\""]
["1993-02-26",{"$f":"YEAR(A37)","v":1993},960,490.84522525194166,"Sight First",1993,{"$f":"SUMIF($B$13:$B$129,F37,$D$13:$D$129)","v":14983.050500815518}]
["1994-03-14",{"$f":"YEAR(A38)","v":1994},8500,4346.0254319182332,"Sight First"]
["1994-09-13",{"$f":"YEAR(A39)","v":1994},1000,511.29710963743923,"St. Johannis-Stift Paderborn"]
["1994-11-11",{"$f":"YEAR(A40)","v":1994},10000,5112.9710963743919,"Sight First",1994,{"$f":"SUMIF($B$13:$B$129,F40,$D$13:$D$129)","v":9970.2936379300645}]
[1995,1995,10000,5112.9710963743919,"Sight First",1995,{"$f":"SUMIF($B$13:$B$129,F41,$D$13:$D$129)","v":5112.9710963743919}]
[]
["1996-04-16",{"$f":"YEAR(A43)","v":1996},1000,{"$f":"C43/$D$9","v":511.29710963743923},"Johannisstift Paderborn",1996,{"$f":"SUMIF($B$13:$B$129,F43,$D$13:$D$129)","v":10737.239302386222}]
[null,1996,20000,10225.942192748784,"Aktion Sight First"]
["1997-05-13",{"$f":"YEAR(A45)","v":1997},140,71.581595349241482,"Sonderkonto Jugend"]
[null,1997,3000,1533.8913289123177,"AWO Kinderzentrum Jugend",1997,{"$f":"SUMIF($B$13:$B$129,F46,$D$13:$D$129)","v":1605.4729242615592}]
["1998-04-21",{"$f":"YEAR(A47)","v":1998},20000,10225.942192748784,"Wohnen für Behinderte"]
["1998-10-06",{"$f":"YEAR(A48)","v":1998},27000,13805.021960210859,"Wohnen für Behinderte"]
[null,1998,1000,511.29710963743923,"Flutkatastrophe Oder"]
[null,1998,22653,11582.413424616911,"Kinderblindenheim Breslau",1998,{"$f":"SUMIF($B$13:$B$129,F50,$D$13:$D$129)","v":36124.674687213992}]
["1999-11-09",{"$f":"YEAR(A51)","v":1999},13500,6902.5109801054296,"Wohnen für Behinderte"]
[null,1999,30000,15338.913289123177,"Missionswerk der Franziskaner"]
[null,null,null,null,"(Schulbau in Brasilien)",1999,{"$f":"SUMIF($B$13:$B$129,F53,$D$13:$D$129)","v":22241.424269228606}]
["2000-10-10",{"$f":"YEAR(A54)","v":2000},1000,{"$f":"C54/$D$9","v":511.29710963743923},"Erdbebenhilfe Türkei"]
[null,2000,27100,{"$f":"C55/$D$9","v":13856.151671174603},"Missionswerk der Franziskaner"]
[null,null,null,null,"(Schulbau in Brasilien)",2000,{"$f":"SUMIF($B$13:$B$129,F56,$D$13:$D$129)","v":14367.448780812041}]
["2001-11-13",{"$f":"YEAR(A57)","v":2001},null,null,"kein Spendenabfluß durch Verzögerungen "]
[null,null,null,null,"bei Antrag für District-Zuschuß",2001,{"$f":"SUMIF($B$13:$B$129,F58,$D$13:$D$129)","v":0}]
["2002-11-05",{"$f":"YEAR(A59)","v":2002},{"$f":"D59*D$9","v":13999.687980000001},7158,"Missionswerk der Franziskaner"]
[null,2002,7705.8914000000004,3940,"Friedensdorf Oberhausen",2002,{"$f":"SUMIF($B$13:$B$129,F60,$D$13:$D$129)","v":11098}]
["2003-10-14",{"$f":"YEAR(A61)","v":2003},16840.1499592,8610.32,"Missionswerk der Franziskaner"]
[null,2003,10756.955,5500,"Missionswerk der Franziskaner"]
[null,2003,19558.100000000002,10000,"Lions Hilfswerk Meißen",2003,{"$f":"SUMIF($B$13:$B$129,F63,$D$13:$D$129)","v":24110.32}]
["2004-10-12",{"$f":"YEAR(A64)","v":2004},25425.53,13000,"Missionswerk der Franziskaner"]
[null,null,null,null,"Brunnenbau (Wasser zu Wein)",2004,{"$f":"SUMIF($B$13:$B$129,F65,$D$13:$D$129)","v":13000}]
["2005-11-08",{"$f":"YEAR(A66)","v":2005},{"$f":"D66*D$9","v":12712.764999999999},6500,"Missionswerk der Franziskaner"]
[null,null,null,null,"Brunnenbau (Wasser zu Wein)",2005,{"$f":"SUMIF($B$13:$B$129,F67,$D$13:$D$129)","v":6500}]
["2006-12-11",2006,null,7000,"Missionswerk der Franziskaner",2006,{"$f":"SUMIF($B$13:$B$129,F68,$D$13:$D$129)","v":7000}]
["2007-07-12",2007,null,4500,"Kirchenkreis PB "]
[null,null,null,null,"Beschaffung von Digitalen Meldern"]
["2007-07-12",2007,null,5000,"Missionswerk der Franziskaner"]
[null,null,null,null,"Ausbildungszentrum für Jugendliche in Ruanda"]
["2007-07-12",2007,null,5000,"Opportunity International Deutschland"]
[null,null,null,null,"Kleinkredite für Kreditnehmer in Ghana"]
["2007-07-12",2007,null,10500,"Westfälische Kinderdörfer"]
[null,null,null,null,"Berufsschule für Mädchen in Ghana",2007,{"$f":"SUMIF($B$13:$B$129,F76,$D$13:$D$129)","v":25000}]
["2008-05-28",2008,null,8000,"Sterntaler e.V. Paderborn"]
[null,null,null,null,"Einzelprojekte",2008,{"$f":"SUMIF($B$13:$B$129,F78,$D$13:$D$129)","v":8288}]
["2008-09-26",2008,null,288,"Hilfswerk Dt. Lions  Jahresspende"]
["2009-02-20",2009,null,297,"Hilfswerk Dt. Lions  Jahresspende"]
["2009-05-06",2009,null,4000,"Internationaler Verband Westf. Kinderdörfer (Ghana)"]
["2009-05-06",2009,null,5000,"Sterntaler e.V. Paderborn"]
["2009-05-07",2009,null,4000,"Missionswerk der Franziskaner"]
["2009-11-05",2009,null,1000,"Hilfswerk der Dt. Lions, für Indonesien",2009,{"$f":"SUMIF($B$13:$B$129,F84,$D$13:$D$129)","v":14297}]
["2010-06-23",2010,null,1000,"Förderverein der Musikschule Paderborn"]
["2010-06-23",2010,null,2000,"Int. Verband Westf. Kinderdörfer, Paderborn"]
["2010-06-23",2010,null,4000,"TURA Elsen Abtl Behindertensport"]
["2010-06-23",2010,null,4000,"Avicres Brasilienhilfe e. V. Paderborn"]
["2010-06-23",2010,null,2000,"DKMS Deutsche Knochenmarkspender Datei, Tübingen"]
["2010-09-08",2010,null,1000,"Hilfswerk Dt. Lions Pakistan-Fluthilfe",2010,{"$f":"SUMIF($B$13:$B$129,F90,$D$13:$D$129)","v":14000}]
["2011-07-20",{"$f":"YEAR(A91)","v":2011},null,3000,"Sterntaler e.V. Paderborn"]
["2011-07-20",{"$f":"YEAR(A92)","v":2011},null,4000,"Missionswerk der Franziskaner",2011,{"$f":"SUMIF($B$13:$B$129,F92,$D$13:$D$129)","v":7000}]
["2012-04-27",{"$f":"IF(YEAR(A93)>1900,YEAR(A93),\"\")","v":2012},null,2000,"Ambulanter Kinderhospizdienst Paderborn"]
["2012-04-27",{"$f":"IF(YEAR(A94)>1900,YEAR(A94),\"\")","v":2012},null,2000,"Christopherus Stiftung Lepra Krankenhaus"]
["2012-04-27",{"$f":"IF(YEAR(A95)>1900,YEAR(A95),\"\")","v":2012},null,6000,"Missionswerk der Franziskaner"]
[null,null,null,null,"Hungerhilfe Afrika"]
["2012-04-27",{"$f":"IF(YEAR(A97)>1900,YEAR(A97),\"\")","v":2012},null,5000,"Int. Verband Westf. Kinderdörfer, Paderborn Hornhauttransplantation der 9jährigen Naomi; \ndavon 2.000€ Districtzuschuß"]
["2012-07-01",{"$f":"IF(YEAR(A98)>1900,YEAR(A98),\"\")","v":2012},null,3000,"Sterntaler e.V. Paderborn",null,null,"aus Jahr 2011/12"]
[null,2012,null,4000,"Missionswerk der Franziskaner",null,null,"aus Jahr 2011/12"]
[null,2012,null,3000,"Hospiz \"Mutter der Barmherzigkeit\"",null,null,"aus Jahr 2011/12"]
["2012-08-01",{"$f":"IF(YEAR(A101)>1900,YEAR(A101),\"\")","v":2012},null,315,"Hilfswerk Dt. Lions  Jahresspende"]
["2012-11-01",2012,null,8000,"Lichtblicke für Kinder in Afrika im RTL Spendenmarathon",2012,{"$f":"SUMIF($B$13:$B$129,F102,$D$13:$D$129)","v":33315}]
["2013-04-14",2013,null,15200,"Verein „Freunde Äthiopiens e.V.“ , davon Zuschuß District 4.200,-"]
["2013-05-10",2013,null,2000,"AWO Kinderzentrum Paderborn",null,null,"2012/2013",{"$f":"SUM(D101:D104)","v":25515}]
["2013-07-19",2013,null,8700,"Hilfswerk Dt. Lions Hochwasserhilfe",2013,{"$f":"SUMIF($B$13:$B$129,F105,$D$13:$D$129)","v":26215}]
["2013-08-01",2013,null,315,"Hilfswerk der Deutschen Lions"]
[null,2014,null,100,"Lionsquest Weiterbildung"]
["2014-04-16",{"$f":"IF(YEAR(A108)>1900,YEAR(A108),\"\")","v":2014},null,5000,"Intern. Verband westfälischer Kinderdörfer, Paderborn"]
["2014-06-30",{"$f":"IF(YEAR(A109)>1900,YEAR(A109),\"\")","v":2014},null,2500,"Musiker ohne Grenzen"]
["2014-06-30",{"$f":"IF(YEAR(A110)>1900,YEAR(A110),\"\")","v":2014},null,2500,"Franziskanermission Dortmund",null,null,"2013/2014",{"$f":"SUM(D105:D110)","v":19115}]
["2014-10-31",{"$f":"IF(YEAR(A111)>1900,YEAR(A111),\"\")","v":2014},null,324,"Districtspende Verfügungsfonds"]
["2014-11-18",{"$f":"IF(YEAR(A112)>1900,YEAR(A112),\"\")","v":2014},null,2000,"Lions Spendenmarthon - Lichtblicke für Afrika",2014,{"$f":"SUMIF($B$13:$B$129,F112,$D$13:$D$129)","v":12424}]
[]
["2015-02-18",{"$f":"IF(YEAR(A114)>1900,YEAR(A114),\"\")","v":2015},null,600,"Patenschaft Klasse 2000 der Lutherschule Paderborn"]
["2015-03-03",2015,null,10000,"Freunde Äthiopiens Projekt Nefas Mewcha"]
["2015-04-09",2015,null,9000,"Missionare auf Zeit; Programm d. Kongregation d. Franziskanerinnen"]
["2015-04-30",2015,null,2000,"Aktion Zeitspende: Bürgerstiftung Paderborn"]
["2015-08-18",2015,null,380,"Ünterstützung Lions Radio Spot zur Alphabetisierungskampagne"]
["2015-09-01",2015,null,600,"Unterstützung Klasse 2000"]
["2015-09-25",2015,null,333,"Hilfswerk Dt. Lions",2015,{"$f":"SUMIF($B$13:$B$129,F120,$D$13:$D$129)","v":22913},"2014/2015",{"$f":"SUM(D111:D120)","v":25237}]
[]
["2016-01-22",{"$f":"IF(YEAR(A122)>1900,YEAR(A122),\"\")","v":2016},null,2000,"Mama-Papa Home Sri Lanka"]
["2016-04-06",2016,null,150,"Mentor Lesehilfe Paderborn"]
["2016-04-08",2016,null,10000,"Paderborner Syrienhilfe"]
["2016-05-06",2016,null,150,"Mentor Lesehilfe Paderborn"]
["2016-05-10",2016,null,4000,"Mama-Papa Home Sri Lanka",null,null,"2015/2016",{"$f":"SUM(D118:D127)","v":17763}]
["2016-06-06",2016,null,150,"Mentor Lesehilfe Paderborn"]
[]
["2016-07-06",{"$f":"IF(YEAR(A129)>1900,YEAR(A129),\"\")","v":2016},null,150,"Mentor Lesehilfe Paderborn",null,null,"Übereinstimmung mit Franz Schreckenberg"]
["2016-07-14",2016,null,5000,"Stiftung Lebenslauf"]
["2016-07-21",2016,null,900,"Sonderpflege e.V."]
["2016-08-08",2016,null,150,"Mentor Lesehilfe Paderborn"]
["2016-08-15",2016,null,380,"Radiospot Alphabetisierung"]
["2016-08-23",2016,null,1000,"Verein Pallium"]
["2016-09-06",2016,null,150,"Mentor Lesehilfe Paderborn"]
["2016-09-27",2016,null,600,"Klasse 2000"]
["2016-09-30",2016,null,324,"Hilfswerk Dt. Lions"]
["2016-10-06",2016,null,150,"Mentor Lesehilfe Paderborn"]
["2016-11-02",2016,null,6000,"Mama Papa Home Sri Lanka"]
["2016-11-07",2016,null,150,"Mentor Lesehilfe Paderborn"]
["2016-12-06",2016,null,150,"Mentor Lesehilfe Paderborn",2016,{"$f":"SUMIF($B$13:$B$1156,F141,$D$13:$D$141)","v":31554}]
[null,""]
["2017-01-06",2017,null,150,"Mentor Lesehilfe Paderborn"]
["2017-02-06",2017,null,150,"Mentor Lesehilfe Paderborn"]
["2017-03-06",2017,null,150,"Mentor Lesehilfe Paderborn"]
["2017-03-30",2017,null,220,"Klasse 2000"]
["2017-04-06",2017,null,150,"Mentor Lesehilfe Paderborn"]
["2017-05-08",2017,null,7200,"Welthungerhilfe Äthiopien"]
["2017-05-08",2017,null,5300,"Welthungerhilfe Äthiopien",null,null,"2 Überweisungen?"]
["2017-05-09",2017,null,2000,"Odissa Charles Uganda",null,null,"von Franz Schreckenberg übernommen"]
["2017-05-19",2017,null,500,"Welthungerhilfe zweckgeb."]
["2017-06-04",2017,null,2500,"Sozialdienst kath. Männer",null,null,"diese beiden Spenden hat FS dem Jahr 2017/2018 zugerechnet",null,null,null,null,"lt. Franz S."]
["2017-06-14",2017,null,2000,"Wasser für Labgar",null,null,"2016/2017",{"$f":"SUM(D129:D153)","v":35424},"ohne die beiden und dopelte Welthungerhilfe",null,null,{"$f":"I153-D152-D153-D149","v":25624}]
[]
["2017-09-18",{"$f":"IF(YEAR(A155)>1900,YEAR(A155),\"\")","v":2017},null,324,"Hilfswerk Dt. Lions"]
["2017-10-17",2017,null,6000,"Mama Papa Home Sri Lanka",null,null,null,null,null,null,null,{"$f":"I160+D152+D153","v":4500}]
["2017-12-21",2017,null,1350,"Sammelspende Mentor Lesehilfe",null,null,null,null,null,null,"Welthungerhilfe",5300]
["2017-12-28",2017,null,820,"Klasse 2000",2017,{"$f":"SUMIF($B$13:$B$1156,F158,$D$13:$D$141)","v":28814},"Spenden 2. HJ 2017",{"$f":"SUM(D155:D158)","v":8494},null,null,"lt. Franz S.",{"$f":"SUM(M156:M157)","v":9800}]
["2018-05-08",2018,null,5300,"Deutsche Welthungerhilfe e.V."]
["2018-05-09",2018,null,3500,"Mama Papa Home Sri Lanka (Renovierungsmaßnahmen)"]
["2018-05-09",2018,null,1500,"Mama Papa Home Sri Lanka (Physiotherapeut)"]
["2018-06-04",2018,null,2500,"SKM - Kath. Verein f. soz. Dienste"]
["2018-06-14",2018,null,2000,"Projekt Wasser für Labgar",2018,{"$f":"SUMIF($B$13:$B$1156,F163,$D$13:$D$141)","v":15353},"Spenden 1. HJ 2018",{"$f":"SUM(D159:D163)","v":14800}]
[null,"",null,null,null,null,null,"LJ 2017/2018",{"$f":"SUM(D155:D163)","v":23294},{"$f":"IF(I158+I163=I164,\"ok\",\"fehler\")","v":"ok"}]
["2018-10-01",2018,null,333,"Hilfswerk d. Deutschen Lions eV"]
["2018-10-18",2018,null,220,"Klasse 2000",null,null,"Spenden 2. HJ 2018",{"$f":"SUM(D165:D166)","v":553}]
["2019-06-25",2019,null,4000,"Mama Papa Home Sri Lanka"]
["2019-06-26",2019,null,10000,"Sterntaler Hile f. Kinder e.V.",null,null,"Spenden 1. HJ 2019",{"$f":"SUM(D167:D168)","v":14000}]
[null,"",null,null,null,null,null,"LJ 2018/2019",{"$f":"SUM(D165:D168)","v":14553},{"$f":"IF(I166+I168=I169,\"ok\",\"fehler\")","v":"ok"}]
["2019-07-31",2019,null,8022.5,"Wabe Kinderhilfe Äthiopien (Bauprojekt Hygienemanagement)"]
["2019-10-16",2019,null,500,"Stiftung Deutsche Krebshilfe",null,null,"Spende kam vom Lions-Club direkt; nicht vom Förderverein!"]
["2019-11-22",2019,null,1000,"Aktion Benni u. Co. e.V.",2019,{"$f":"SUMIF($B$13:$B$1156,F172,$D$13:$D$141)","v":23522.5},"Spenden 2. HJ 2019",{"$f":"SUM(D170:D172)","v":9522.5},null,"vom Förderverein",{"$f":"I172-D$171","v":9022.5}]
["2020-03-31",2020,null,2000,"Mama Papa Home Sri Lanka"]
["2020-03-31",2020,null,10000,"IVWK e.V."]
["2020-03-31",2020,null,2500,"Odissa Charles e.V."]
["2020-04-02",2020,null,16652.5,"Wabe Kinderhilfe Äthiopien",null,null,"Spenden 1. HJ 2020",{"$f":"SUM(D173:D176)","v":31152.5}]
[null,null,null,null,null,null,null,"LJ 2019/2020",{"$f":"I172+I176","v":40675},{"$f":"IF(I172+I176=I177,\"ok\",\"fehler\")","v":"ok"},"vom Förderverein",{"$f":"I177-D$171","v":40175}]
["2020-10-05",{"$f":"IF(YEAR(A178)>1900,YEAR(A178),\"\")","v":2020},null,351,"Stiftung der Deutschen Lions",2020,{"$f":"SUMIF($B$13:$B$1156,F178,$D$13:$D$141)","v":31503.5},"Spenden 2. HJ 2020",{"$f":"SUM(D178)","v":351},null,"vom Club direkt 500 an Stiftung Krebshilfe",500]
["2021-01-25",2021,null,5000,"Missionsschwestern v. kostb. Blut",null,null,null,null,null,null,40675]
["2021-02-25",2021,null,5000,"Kongr. D. Franziskanerinnen"]
["2021-03-01",2021,null,10000,"Verein kath. Altenhilfeeinr. PB e.V."]
["2021-06-25",2021,null,1027.5,"Wabe Childrens Aid + Training",null,null,"Spenden 1. HJ 2021",{"$f":"SUM(D179:D182)","v":21027.5}]
[null,"",null,null,null,null,null,"LJ 2020/2021",{"$f":"I178+I182","v":21378.5},{"$f":"IF(I178+I182=I183,\"ok\",\"fehler\")","v":"ok"}]
["2021-10-29",2021,null,369,"Stiftung der Deutschen Lions (SDL)",2021,{"$f":"SUMIF($B$13:$B$1156,F184,$D$13:$D$141)","v":21396.5},"Spenden 2. HJ 2021",{"$f":"SUM(D184)","v":369}]
[]
[]
[]
[]
[]
[]
[null,{"$f":"IF(YEAR(A191)>1900,YEAR(A191),\"\")","v":""}]

{"sheet":"Ämter ","index":4,"n_rows":83,"n_cols":49,"rows_kept":83,"cut":false,"hidden":false,"merged":[[0,4,0,5]]}
[null,null,null,null,"Lionsjahr",null,"23/24","22/23","21/22","20/21","19/20",{"$f":"\"18/19\"","v":"18/19"},{"$f":"\"17/18\"","v":"17/18"},{"$f":"\"16/17\"","v":"16/17"},{"$f":"\"15/16\"","v":"15/16"},{"$f":"\"14/15\"","v":"14/15"},{"$f":"\"13/14\"","v":"13/14"},{"$f":"\"12/13\"","v":"12/13"},{"$f":"\"11/12\"","v":"11/12"},{"$f":"\"10/11\"","v":"10/11"},{"$f":"\"09/10\"","v":"09/10"},{"$f":"\"08/09\"","v":"08/09"},{"$f":"\"07/08\"","v":"07/08"},{"$f":"\"06/07\"","v":"06/07"},{"$f":"\"05/06\"","v":"05/06"},{"$f":"\"04/05\"","v":"04/05"},{"$f":"\"03/04\"","v":"03/04"},{"$f":"\"02/03\"","v":"02/03"},{"$f":"\"01/02\"","v":"01/02"},"00/01","99/00","98/99","97/98","96/97","95/96","94/95","93/94","92/93","91/92","90/91","89/90","88/89","87/88","86/87","85/86","84/85","83/84","82/83","81/82"]
[null,"Name","Geb.-Dat.",null,"Eintritt","Anzahl \nÄmter",null,null,"ausgefallen",null,"ausgefallen",null,"Potsdam",null,"Karlsruhe",null,"Norden",null,"Holland",null,"Rhein-\ngau",null,"Berlin",null,"Lud-\nwigsb.",null,"Dres-\nden",null,"Mosel",null,"Flan-\ndern",null,"Celle",null,"Elsaß",null,"Wien",null,"Qued-\nlinb.",null,"Aals-\nmeer",null,"Mai-\nkam.",null,"Fran-\nken"]
[null,"Ammenwerth, Richard","1945-01-26","P",1983,{"$f":"COUNTA(J3:AW3)","v":6},null,null,null,"P",null,null,null,null,"S","S","S",null,null,null,null,null,null,null,null,null,null,null,null,null,null,null,null,null,"P",null,null,null,null,null,null,null,null,null,"A"]
[null,"Auffenberg, Christian","1975-05-08",null,2020,{"$f":"COUNTA(J4:AW4)","v":0}]
[null,"Bartels, Günther*","1935-08-01","P",1993,2,null,null,null,null,null,null,null,null,null,null,null,null,null,null,null,null,null,null,null,"P",null,null,null,"ZCH"]
[null,"Baur, Martin","1968-05-11",null,2013,4,null,null,null,null,null,"A","A","A","A"]
[null,"Bee, Peter Wilhelm","1971-09-11",null,2013,0]
[null,"Brors, Dominik","1965-06-28",null,2011,{"$f":"COUNTA(H8:AW8)","v":4},null,"P",null,null,null,"C","C","C"]
[null,"Deter, Gerhard","1950-04-20",null,2020,0]
["G","Feldmann, Ulrich*","1936-06-25","P",1981,4,null,null,null,null,null,null,null,null,null,null,null,null,null,"A",null,null,null,null,null,null,null,null,null,null,null,"C",null,null,null,null,null,"P",null,null,null,null,null,null,null,null,null,"C"]
["G","Friemuth, Klaus","1939-04-04","P",1981,5,null,null,null,null,null,null,null,null,null,null,null,null,null,null,null,null,null,null,null,null,null,null,null,null,null,null,null,"C",null,"C",null,null,null,"P",null,null,null,"C",null,null,null,null,"S"]
[null,"Hollmann, Benjamin","1981-06-30",null,2017,0]
["G","Jacoby, Franz","1947-04-16","P",1981,5,null,null,null,null,null,null,null,null,null,null,null,null,null,null,null,null,"C","C",null,null,null,null,null,null,null,null,null,null,null,null,null,null,"P",null,null,"S",null,null,null,null,"C"]
[null,"Joepen, Horst","1957-11-25","P",1999,11,null,null,null,"Sch","Sch","Sch","Sch","Sch","Sch","Sch","Sch",null,null,null,"P",null,null,null,null,null,null,"A","A"]
[null,"Käter, Ansgar","1971-03-12",null,2018,0]
[null,"Keysers, Ludger*","1960-05-29","P",2006,5,null,null,null,null,null,null,null,null,"C","C",null,"P",null,null,null,"A","A"]
["G","Krause, Horst-Günter*","1940-09-11","P",1981,11,null,null,null,null,null,null,null,null,null,null,null,null,null,null,null,null,null,null,null,null,null,null,null,null,"C",null,"S","S",null,null,null,null,null,null,"P",null,"S","S","SCH","SCH","SCH","SCH","Sch"]
[null,"Krings, Wolfgang","1955-03-25","P",1997,{"$f":"COUNTA(H18:AW18)","v":4},null,null,"P",null,null,null,null,null,null,null,"C","C",null,null,null,null,null,null,"P"]
[null,"Kühle, Martin","1967-12-09","P",2019,0,"P"]
["G","Lücke, Roland*","1942-05-26","P",1981,5,null,null,null,null,null,null,null,null,null,null,null,null,null,null,null,null,null,null,null,null,null,null,null,"C",null,null,null,null,null,null,null,"SCH","SCH","SCH",null,null,null,null,null,null,"P"]
[null,"Martiny, Lutz","1943-02-04","P",1994,1,null,null,null,null,null,null,null,null,null,null,null,null,"P"]
["G","Nöcker, Dietrich","1942-09-26","P",1981,9,null,null,null,null,"P",null,null,null,null,null,null,"S",null,null,"C",null,null,null,null,null,null,"C","S","S",null,null,null,null,"C",null,null,null,"A",null,null,null,"P"]
["G","Oberheide, Henning","1947-11-23","P",1981,4,null,null,null,null,null,null,null,null,null,null,null,null,null,null,"A",null,null,null,null,null,null,null,null,null,null,null,null,null,null,null,"P",null,null,null,null,null,null,null,"C",null,null,"S"]
[null,"Ortner, Gerhard E.","1940-09-18","P",1985,2,null,null,null,null,null,null,null,null,null,null,null,null,null,null,null,null,null,null,null,null,null,"P",null,null,null,null,null,null,null,null,null,null,null,null,"A"]
[null,"Plonka, Marek","1966-07-15",null,2011,3,null,null,null,null,null,"S","S","S"]
[null,"Plückebaum, Andreas*","1966-12-16",null,2016,0]
[null,"Porcelli, David","1981-07-12",null,2022]
[null,"Preising, Andreas","1958-10-09","P",2001,3,null,null,null,null,null,null,null,null,null,"P",null,null,null,null,null,null,null,null,null,"A","A"]
[null,"Reller, Ralf","1971-06-28",null,2019,{"$f":"COUNTA(H29:AW29)","v":1},"A","A"]
[null,"Richard, Hans Albert","1949-09-22","P",1991,5,null,null,null,null,null,"P",null,null,null,null,null,null,null,null,null,"S",null,null,null,null,null,null,"P",null,null,null,"C",null,null,null,"C"]
[null,"Rimrod, Fredrik","1980-08-07",null,2015,{"$f":"COUNTA(H31:AW31)","v":1},null,"C"]
[null,"Schmidt, Hans-Jörg","1960-05-09","P",2002,5,null,null,null,null,null,null,"P",null,null,"A","A","A","A"]
[null,"Schneider. Martin","1967-09-15",null,2023]
[null,"Schreckenberg, Franz","1962-07-08","P",1997,{"$f":"COUNTA(H34:AW34)","v":9},"S","S","S","S","S",null,null,null,null,null,null,null,null,null,null,"C",null,null,null,null,"P",null,null,"A","A","A"]
[null,"Stecher, Martin","1967-12-05",null,2020,{"$f":"COUNTA(H35:AW35)","v":2},"Sch","Sch","Sch"]
["G","Tack, Josef","1945-11-10","P",1981,3,null,null,null,null,null,null,null,null,null,null,null,null,null,null,null,null,"P",null,null,null,null,null,null,null,null,null,null,null,null,"A",null,null,null,null,null,null,null,null,null,null,"S"]
[null,"Thiele, Reinhard","1940-08-31","P",1986,3,null,null,null,null,null,null,null,null,null,null,null,null,null,null,null,null,null,null,null,null,null,null,null,null,"P",null,null,null,null,null,null,null,null,null,"C","C"]
[null,"Thönissen, Wolfgang*","1955-09-28","P",2001,{"$f":"COUNTA(J38:AW38)","v":7},null,null,null,null,null,null,null,null,null,null,null,null,null,"P",null,null,"S","S","S","S","S","S"]
[null,"Vollbach, Lothar","1954-01-12","P",1994,8,null,null,null,null,null,null,null,"P",null,null,null,null,"C","C",null,null,null,null,null,null,"C",null,null,"P",null,null,"A","A","A"]
[null,"von Westphfalen, Raban","1945-12-17",null,2020,0]
[null,"Wiedeking, Antonius","1952-01-13","P",1987,8,null,null,null,null,null,null,null,null,null,null,null,null,null,null,null,"P",null,null,null,null,null,null,null,null,"Sch","Sch","SCH","SCH","SCH",null,"S","A"]
[null,"Wieneke, Meinolf","1942-03-01",null,1988,2,null,null,null,null,null,null,null,null,null,null,null,null,null,null,null,null,null,null,null,null,null,null,null,null,null,null,null,null,null,null,"A",null,null,"A"]
[null,{"$f":"COUNTA(B3:B42)& \" Mitglieder\"","v":"40 Mitglieder"},null,null,"Ämter",{"$f":"SUM(F3:F42)","v":142},null,null,null,null,null,null,null,null,null,null,null,null,null,null,null,null,null,{"$f":"COUNTA(X3:X42)","v":2},2,3,4,4,3,5,4,3,4,4,4,2,4,3,3,3,3,2,2,2,3,1,4,3,2]
[{"$f":"COUNTA(A3:A42)& \" Gündungsmitglieder\"","v":"8 Gündungsmitglieder"}]
[">Na","me*> passive Mitgliedschaft"]
[null,"Zugänge ab 1982",null,null,{"$f":"SUM(L46:AV46)","v":24},{"$f":"AVERAGE(G46:AV46)","v":0.64864864864864868},null,null,null,null,null,{"$f":"COUNTIF($E$3:$E$42,2018)","v":1},{"$f":"COUNTIF($E$3:$E$42,2017)","v":1},{"$f":"COUNTIF($E$3:$E$42,2016)","v":1},{"$f":"COUNTIF($E$3:$E$42,2015)","v":1},{"$f":"COUNTIF($E$3:$E$42,2014)","v":0},{"$f":"COUNTIF($E$3:$E$42,2013)","v":2},{"$f":"COUNTIF($E$3:$E$42,2012)","v":0},{"$f":"COUNTIF($E$3:$E$42,2011)","v":2},{"$f":"COUNTIF($E$3:$E$42,2010)","v":0},{"$f":"COUNTIF($E$3:$E$42,2009)","v":0},{"$f":"COUNTIF($E$3:$E$42,2008)","v":0},{"$f":"COUNTIF($E$3:$E$42,2007)","v":0},{"$f":"COUNTIF($E$3:$E$42,2006)","v":1},{"$f":"COUNTIF($E$3:$E$42,2005)","v":0},{"$f":"COUNTIF($E$3:$E$42,2004)","v":0},{"$f":"COUNTIF($E$3:$E$42,2003)","v":0},{"$f":"COUNTIF($E$3:$E$42,2002)","v":1},{"$f":"COUNTIF($E$3:$E$42,2001)","v":2},{"$f":"COUNTIF($E$3:$E$42,2000)","v":0},{"$f":"COUNTIF($E$3:$E$42,1999)","v":1},{"$f":"COUNTIF($E$3:$E$42,1998)","v":0},{"$f":"COUNTIF($E$3:$E$42,1997)","v":2},{"$f":"COUNTIF($E$3:$E$42,1996)","v":0},{"$f":"COUNTIF($E$3:$E$42,1995)","v":0},{"$f":"COUNTIF($E$3:$E$42,1994)","v":2},{"$f":"COUNTIF($E$3:$E$42,1993)","v":1},{"$f":"COUNTIF($E$3:$E$42,1992)","v":0},{"$f":"COUNTIF($E$3:$E$42,1991)","v":1},{"$f":"COUNTIF($E$3:$E$42,1990)","v":0},{"$f":"COUNTIF($E$3:$E$42,1989)","v":0},{"$f":"COUNTIF($E$3:$E$42,1988)","v":1},{"$f":"COUNTIF($E$3:$E$42,1987)","v":1},{"$f":"COUNTIF($E$3:$E$42,1986)","v":1},{"$f":"COUNTIF($E$3:$E$42,1985)","v":1},{"$f":"COUNTIF($E$3:$E$42,1984)","v":0},{"$f":"COUNTIF($E$3:$E$42,1983)","v":1},{"$f":"COUNTIF($E$3:$E$42,1982)","v":0},{"$f":"COUNTIF($E$3:$E$42,1981)","v":8}]
[null,"noch nicht Präsident",null,{"$f":"COUNTBLANK(D3:D42)","v":16}]
[null,"Frühere Mitglieder"]
[null,"Daniel, Bernhard †","1928-06-15",null,1981,{"$f":"COUNTA(J49:AW49)","v":3},null,null,null,null,null,null,null,null,null,null,null,null,null,null,null,null,null,null,null,null,null,null,null,null,null,null,null,null,null,null,"RCH",null,null,null,null,"P",null,null,null,"C"]
[null,"Dinger",null,null,null,2,null,null,null,null,null,null,null,null,null,null,null,null,null,null,null,null,null,null,null,null,null,null,null,null,null,null,null,null,null,null,null,null,null,null,null,null,null,"P",null,"A"]
[null,"Eicker, Peter","1944-11-23",null,1986,5,null,null,null,null,null,null,null,null,null,null,null,null,null,null,null,null,null,null,null,null,null,null,null,null,null,null,null,"P",null,null,null,"S","S","C",null,"A"]
[null,"Gnisa, Jens","1963-05-19","P",2009,3,null,null,null,null,null,null,null,null,"P",null,null,null,"S","S"]
[null,"Hahn, Michael","1966-03-12","P",2001,2,null,null,null,null,null,null,null,null,null,null,null,null,null,null,"S",null,null,"P"]
[null,"Heinrichsmeier, Clemens","1928-04-15",null,1981,3,null,null,null,null,null,null,null,null,null,null,null,null,null,null,null,null,null,null,null,null,null,null,null,null,null,null,null,null,null,null,null,null,null,"2.VP",null,null,null,null,"S","S"]
["G","Henning, Hans †","1935-08-04","P",1981,4,null,null,null,null,null,null,null,null,null,null,null,null,null,null,null,null,null,null,null,null,null,null,null,null,null,null,null,null,null,"SCH","SCH",null,null,null,null,null,null,null,"P",null,null,null,"A"]
[null,"Hohenstein, Klaus",null,null,1997,0]
[null,"Hornmann, Klaus †","1938-01-10",null,1981,3,null,null,null,null,null,null,null,null,null,null,null,null,null,null,null,null,null,null,null,null,null,null,null,null,null,null,null,null,null,"P",null,null,null,null,null,null,"C",null,null,null,null,null,"C"]
[null,"Huttrop-Hage, Kai","1972-12-10",null,2006,0]
["G","Johannknecht, Gerhard†","1931-10-07","P",1981,1,null,null,null,null,null,null,null,null,null,null,null,null,null,null,null,null,null,null,null,null,null,null,null,null,null,null,null,null,null,null,null,null,null,null,null,null,null,null,null,"P"]
[null,"Kinne",null,null,1989,0]
[null,"Kloke",null,null,null,0]
[null,"Köhler",null,null,1981,5,null,null,null,null,null,null,null,null,null,null,null,null,null,null,null,null,null,null,null,null,null,null,null,null,null,null,null,null,null,null,null,null,null,null,"SCH","SCH","SCH","SCH",null,null,null,null,"P"]
[null,"Knickenberg, Manfred †","1939-06-21","P",1995,5,null,null,null,null,null,null,null,null,null,null,"P",null,null,null,null,null,null,"A","A",null,null,null,null,null,"S","S"]
[null,"Kruse † 1.5.1990",null,null,1981,0]
["G","Kuhlenkamp, Dieter †","1930-11-08","P",1981,10,null,null,null,null,null,null,null,null,null,null,null,null,null,null,null,null,"Sch","Sch","Sch","Sch","Sch","Sch","Sch","Sch",null,null,null,null,null,"S",null,null,null,null,null,null,null,null,null,null,null,"P"]
["G","Liemke, Hartwig †","1937-07-31","P",1981,8,null,null,null,null,null,null,null,null,null,null,null,null,null,null,null,null,null,null,null,null,null,null,null,null,null,"P",null,null,"S",null,null,"C","C",null,null,null,"A","A",null,null,"A","A"]
[null,"Niggemeier","1951-07-30",null,2001,0]
[null,"Niestendietrich",null,null,1987,0]
[null,"Nowak",null,null,1981,0]
[null,"Schlewing",null,null,1981,0]
[null,"Tödt",null,null,null,0]
[null,"Tietmeyer",null,null,1981,0]
[null,"Niggemeier","1951-07-30",null,2001,0]
[null,"Hahn, Michael","1966-03-12","P",2001,2,null,null,null,null,null,null,null,null,null,null,null,null,null,null,"S",null,null,"P"]
[null,"Huttrop-Hage, Kai","1972-12-10",null,2006,0]
["G","Henning, Hans †","1935-08-04","P",1981,4,null,null,null,null,null,null,null,null,null,null,null,null,null,null,null,null,null,null,null,null,null,null,null,null,null,null,null,null,null,"SCH","SCH",null,null,null,null,null,null,null,"P",null,null,null,"A"]
[]
[]
[]
[]
[null,"Wellmann, Hans","1938-03-30","P",1987,{"$f":"COUNTA(J81:AW81)","v":11},null,null,null,null,null,null,null,null,null,null,null,"Sch","Sch","Sch","Sch","Sch",null,null,"C","C",null,null,null,null,null,null,"P",null,null,null,null,"ZCH",null,"S","S"]
[]
[null," "]

{"sheet":"Vorstand","index":5,"n_rows":16,"n_cols":7,"rows_kept":16,"cut":false,"hidden":false,"merged":[[1,1,1,2],[1,4,1,5],[10,4,10,5]]}
[]
[null,"Vorstand für das Lionsjahr 2023/2024",null,null,"Bankverbindungen",null,"Lions Club Paderborn-Carolus"]
[null,null,null,null,null,null,"Bank für Kirche und Caritas (BKC)"]
[null,"Präsident","Martin Kühle",null,null,null,"DE12 4726 0307 0015 8502 00"]
[null,"Past-Präsident","Dr. Dominik Brors"]
[null,"1. Vizepräsident","Dr. Martin Baur"]
[null,"2. Vizepräsident","Frederik Rimrod",null,null,null,"Förderverein"]
[null,"Sekretär","Franz Schreckenberg",null,null,null,"Förderverein Lionsclub Paderborn-Carolus e.V."]
[null,"Schatzmeister","Martin Stecher",null,null,null,"Bank für Kirche und Caritas (BKC)"]
[null,"Clubmaster","David Porcelli",null,null,null,"IBAN DE74472603070015900300"]
[null,"Activitybeauftragter","Ralf Reller"]
[null,"Rechnungsprüfer","Ansgar Käter"]
[null,"Internetbeauftragter","Dr. Lutz Martiny"]
[null,"Leobeauftragter","Dr. Hansjörg Schmidt"]
[null,"Umweltbeauftragter","Marek Plonka"]
[null,"Mitgliedschaftsbeauftragter","Christian Auffenberg"]

{"sheet":"ehem. Vorstände","index":6,"n_rows":46,"n_cols":4,"rows_kept":46,"cut":false,"hidden":false,"merged":[]}
[]
[null,null,"Lionsjahr","Präsident, Sekretär, Schatzmeister"]
[]
[null,null,"1981/82","Köhler,  S Friemuth, SCH Krause"]
[null,null,"1982/83","Kuhlenkamp,  Oberheide, Krause "]
[null,null,"1983/84","Lücke, Tack, Krause "]
[null,null,"1984/85","Johannknecht,  Heinrichsmeier, Krause "]
[null,null,"1985/86","Henning, Heinrichsmeier, Krause "]
[null,null,"1986/87","Dinger, Krause, Köhler "]
[null,null,"1987/88","Nöcker,  Krause, Köhler "]
[null,null,"1988/89","Daniel, Jacoby, Köhler "]
[null,null,"1989/90","Krause, Wellmann, Köhler "]
[null,null,"1990/91","Friemuth, Wellmann, Lücke "]
[null,null,"1991/92","Jacoby, Eicker, Lücke "]
[null,null,"1992/93","Feldmann, Eicker, Lücke "]
[null,null,"1993/94","Oberheide, Wiedeking, Henning "]
[null,null,"1994/95","Hornmann,  Kuhlenkamp, Henning "]
[null,null,"1995/96","Ammenwerth,   Liemke, Wiedeking "]
[null,null,"1996/97","Eicker, Krause, Wiedeking "]
[null,null,"1997/98","Wellmann, Krause, Wiedeking "]
[null,null,"1998/99","Liemke, Knickenberg, Wiedeking "]
[null,null,"1999/2000","Thiele, Knickenberg, Wiedeking "]
[null,null,"2000/01","Vollbach, Nöcker, Kuhlenkamp "]
[null,null,"2001/02","Richard, Nöcker, Kuhlenkamp "]
[null,null,"2002/03","Ortner, Thönissen, Kuhlenkamp "]
[null,null,"2003/04","Schreckenberg, Thönissen, Kuhlenkamp "]
[null,null,"2004/05","Bartels, Thönissen, Kuhlenkamp "]
[null,null,"2005/06","Krings, Thönissen, Kuhlenkamp "]
[null,null,"2006/07","Hahn, Thönissen, Kuhlenkamp "]
[null,null,"2007/08","Tack, Thönissen, Kuhlenkamp"]
[null,null,"2008/09","Wiedeking, Richard, Wellmann"]
[null,null,"2009/10","Joepen, Hahn, Wellmann"]
[null,null,"2010/11","Thönissen, Gnisa, Wellmann"]
[null,null,"2011/12","Martiny, Gnisa, Wellmann"]
[null,null,"2012/13","Keysers, Nöcker, Wellmann"]
[null,null,"2013/14","Knickenberg, Ammenwerth, Joepen"]
[null,null,"2014/15","Preising, Ammenwerth, Joepen"]
[null,null,"2015/16","Gnisa, Ammenwerth, Joepen"]
[null,null,"2016/17","Vollbach, Plonka, Joepen "]
[null,null,"2017/18","Schmidt, Plonka, Joepen"]
[null,null,"2018/19","Richard, Plonka, Joepen"]
[null,null,"2019/20","Nöcker, Schreckenberg, Joepen"]
[null,null,"2020/21","Ammenwerth,  Schreckenberg, Joepen"]
[null,null,"2021/22","Krings, Schreckenber, Stecher"]
[null,null,"2022/23","Brors, Schreckenberg, Stecher"]
[null,null,"2023/24","Kühle, Schreckenberg, Stecher"]

{"sheet":"off. Ve.","index":7,"n_rows":523,"n_cols":10,"rows_kept":523,"cut":false,"hidden":false,"merged":[[413,0,426,0],[428,0,439,0],[440,0,454,0],[455,0,472,0],[353,0,362,0],[363,0,375,0],[376,0,388,0],[389,0,401,0],[402,0,412,0],[292,0,303,0],[304,0,312,0],[314,0,326,0],[327,0,340,0],[341,0,351,0],[230,0,241,0],[242,0,254,0],[255,0,265,0],[266,0,278,0],[279,0,291,0],[174,0,184,0],[185,0,196,0],[197,0,207,0],[208,0,217,0],[218,0,229,0],[115,0,126,0],[127,0,139,0],[140,0,153,0],[154,0,162,0],[163,0,173,0],[47,0,56,0],[58,0,74,0],[75,0,91,0],[92,0,103,0],[104,0,114,0],[0,1,0,7],[4,0,5,0],[6,0,24,0],[25,0,35,0],[36,0,46,0]]}
[null,"Zusammenfassung"]
[null,null,{"$f":"COUNTA(C5:C501)","v":495},"offizielleVeranstaltungen insgesamt",null,"davon mit Damen",{"$f":"COUNTA(G5:G501)","v":296},{"$f":"G2/C2","v":0.59797979797979794},"jede 2. Veranstaltung mit Damen"]
["Filterergebnisse",null,{"$f":"SUBTOTAL(103,C5:C501)","v":495},{"$f":"SUBTOTAL(103,D5:D501)","v":473},{"$f":"SUBTOTAL(103,E5:E501)","v":282},null,{"$f":"SUBTOTAL(103,G5:G501)","v":296}]
[null,"Datum","Jahr","Art","Referent, Initiator","Thema","mit Damen","gemeinsam mit ","Gästebuch Bild Nr."]
["LC PB","1980-08-19",{"$f":"YEAR(B5)","v":1980},"Gründungskreis ","Initiative des LC Paderborn","Schreiben des LC Paderborn an Governor wg. Neugründung"]
[null,"1981-02-23",1981,"Informationen über Lions im Schweizer Haus",null,"11 spätere Mitglieder werden vom Vorstand des LC PB über Sinn, Ziele und Zweck der Lionsbewegung informiert"]
["P Köhler,  S Friemuth, SCH Krause","1981-03-19",1981,"Gründungskreis ","Treffen in der Sparkasse","weitere Mitglieder vorschlagen, damit die Mindestzahl von 20 erreicht wird"]
[null,"1981-04-29",1981,"Gründungskreis ",null,"Testessen im Arosa, Vorschläge für neue Mitglieder"]
[null,"1981-06-03",1981,"Gründungskreis ",null,"Test Fischteiche, Vorschläge für neue Mitglieder"]
[null,"1981-06-24",1981,"Gründungskreis ",null,"Test Kurhaus Lippspringe Vorschläge für neue Mitglieder"]
[null,"1981-07-08",1981,"Gründungskreis ",null,"Kaiserpfalz"]
[null,"1981-07-22",1981,"Gründungskreis ",null,"Haus Hentze, Marienloh"]
[null,"1981-09-09",1981,"interne Gründungsversammlung",null,"Vorstandswahlen"]
[null,"1981-09-09",1981,"Vortrag","Kruse","Islamische Mystiker in Südindien"]
[null,"1981-10-14",1981,"Besichtigung","Hornmann","Paderborner Brauerei","x","LC PB"]
[null,"1981-10-28",1981,"offizielle Gründungsversammlung","DG Seppeler"]
[null,"1981-12-09",1981,"Vortrag","Heinrichsmeier","Gedanken zum neuen Ehe- und Familienrecht"]
[null,"1981-12-12",1981,"Weihnachtsfeier",null,"Vorweihnachtliches Konzert Abdinghofkirche als Activity-Veranstaltung","x"]
[null,"1981-12-19",1981,"Weihnachtsbaumschlagen","Tietmeyer","Weihnachtsbaumschlagen anschl. Germanenhof Sandebeck","x","mit Kindern"]
[null,"1982-01-13",1982,"Vortrag","Nöcker","Die Strahlengefährdung des Menschen"]
[null,"1982-02-10",1982,"Vortrag","Daniel","Architektur als Aktion und Reaktion"]
[null,"1982-03-10",1982,"Vortrag","Feldmann","Probleme der inneren Sicherheit aus der Sicht der Strafverfolgung"]
[null,"1982-04-14",1982,"MV"]
[null,"1982-05-12",1982,"Vortrag","Tietmeier","Warum die Bäume nicht in den Himmel wachsen"]
[null,"1982-06-05",1982,"Charterfeier",null,null,"x",null,6]
["Kuhlenkamp,  Oberheide, Krause","1982-08-08",1982,"Vortrag","Nowak","Die Revolution der Mikroelektronik"]
[null,"1982-09-24",1982,"Besichtigung",null,"KKW Grohnde","x"]
[null,"1982-10-06",1982,"MV",null,null,null,null,12]
[null,"1982-11-08",1982,"Vortrag","Höhler","im \"Paderdörfchen\" \nKonflikte der Generationen","x","LC PB als Ausrichter"]
[null,"1982-11-24",1982,"Vortrag","Kruse","Atomenergierecht"]
[null,"1982-12-08",1982,"Vortrag","L Prof. Carstensen","Die Deutsche Sprache in Ost und West"]
[null,"1983-01-12",1983,"Activity Abschluß",null,"Übergabe des Erlöses der Activity 82 an Deutsches Komitee Notärzte","x"]
[null,"1983-02-09",1983,"Vortrag","Dinger","Wirtschaftliche Stärken und Schwächen des Paderborner Raumes"]
[null,"1983-03-09",1983,"Besichtigung",null,"Bertelsmann-Verlag","x"]
[null,"1983-04-13",1983,"MV","Köhler","Die Stellung der Sparkasse in der dt. Kreditwirtschaft",null,null,18]
[null,"1983-05-11",1983,"Besichtigung",null,"Porzellanmanufaktur Fürstenberg anschl. Orgelkonzert in Marienmünster","x",null,19]
["Lücke, Tack, Krause","1983-06-08",1983,"Vortrag","Oberheide","Aktuelle Probleme des Wettbewerbsrechts"]
[null,"1983-09-14",1983,"Vortrag","Schlewing","Thema nicht festgehalten"]
[null,"1983-10-19",1983,"MV",null,null,null,null,22]
[null,"1983-11-09",1983,"Besichtigung","Tack","Besichtigung des Handwerksbildungszentrums Paderborn","x"]
[null,"1983-12-14",1983,"Vortrag","L Otto Buchinger Pyrmont","Die Würde des menschen - Meditationen im Grenzgebiet zwischen Medizin Philosophie, Jurisprudenz und Politik",null,"Governor"]
[null,"1984-01-11",1984,"Activity Abschluß","Liemke","Lobster Essen","x"]
[null,"1984-02-08",1984,"Besichtigung","Lücke","Besichtigung einer Forellenzucht-Anlage in Lichtenau","x"]
[null,"1984-03-09",1984,"Besichtigung","Krause","Besichtigung des Institus für Tieflagerung Schachtanlage Asse","x","LC PB"]
[null,"1984-03-14",1984,"Vortrag","Krause"]
[null,"1984-04-11",1984,"MV",null,null,null,null,28]
[null,"1984-05-09",1984,"Vortrag","Jacoby","Sticken als Freizeitgestaltung"]
["Johannknecht,  Heinrichsmeier, Krause","1984-05-16",1984,"Herrenabend","Hornmann","im Schalander der Brauerei",null,"LC PB"]
[null,"1984-06-06",1984,"Vortrag","Friemuth","Situation in der Bauwirtschaft"]
[null,"1984-09-12",1984,"Vortrag","L Ochsenfarth","Denkmalpfelge und Kunstfertigkeiten von Restauratoren","x"]
[null,"1984-10-17",1984,"Besichtigung","Johannknecht","Besichtigung des Hauses Außel in Wiedenbrück-Batenhorst","x"]
[null,"1984-11-14",1984,"MV",null,null,null,null,35]
[null,"1984-12-18",1984,"Weihnachtsfeier",null,"Weihnachtsoratorium im Dom und Vorweihnachtliche Feier im Adam- und Eva-Haus","x"]
[null,"1985-01-09",1985,"Vortrag","Prof. Buttler","Die Universität -GH-Paderborn in der Region"]
[null,"1985-02-13",1985,"Vortrag","Dr. Rolf Berger","Moderne Technologie-Ausbildung im Dienste des industriellen Strukturwandels"]
[null,"1985-03-13",1985,"MV","Heinrichsmeier","Kirchliche Hochschulen in Paderborn",null,null,39]
[null,"1985-05-08",1985,"Vortrag","Köhler","Bankgeheimnis und Bankauskunft"]
[null,"1985-06-06",1985,"Fahrt",null,"Frankenland Bamberg, Staffelstein","x"]
["Henning, Heinrichsmeier, Krause","1985-07-24",1985,"Liboritreffen",null,"In der Sparkasse"]
[null,"1985-08-14",1985,"Vortrag","W. Rometsch","Jugend und Drogen","x"]
[null,"1985-08-28",1985,"Besichtigung","Dinger","Ausstellung Hildesheim: Nofret die Schöne - Die Frau im Alten Ägypten","x"]
[null,"1985-09-11",1985,"Vortrag","Prof. Dr. Martin Schwochau","Chancen und Risiken der modernen Gentechnologie","x"]
[null,"1985-10-23",1985,"MV",null,null,null,null,46]
[null,"1985-11-20",1985,"Vortrag","Prof. Josef Wallraff","Aktuelle Tendenzen in der Wirtschaftspolitik",null,"mit LC PB"]
[null,"1985-11-27",1985,"Besichtigung","Jacoby","Besichtigung der Firma TAP Tapisserie-Service in Brakel und des Orgelmuseums in Borgentreich","x"]
[null,"1985-12-11",1985,"Kochen bei PESAG",null,"Tisch-Lion deck Dich","x"]
[null,"1985-12-15",1985,"Weihnachtsbaumschlagen",null,"Forstgut Heimat, Bad Lippspringe","x"]
[null,"1986-01-08",1986,"Vortrag","Ammenwerth","Sinn und Unsinn des Leistungssports"]
[null,"1986-02-12",{"$f":"YEAR(B69)","v":1986},"Besichtigung","Kuhlenkamp","EDV-Einsatz in der Anwaltskanzlei"]
[null,"1986-02-26",1986,"Besichtigung","Liemke","Vorführung einer flexiblen Fertigungsstraße für Gußflansche","x"]
[null,"1986-03-12",1986,"Vortrag","Ortner","Dienstleistungen für das Bildungs- und Beschäftigungssystem"]
[null,"1986-04-09",1986,"MV",null,"Spendenübergabe an den DMSG Landesverband Beratungsstelle für Suchtkranke und Drogenabhängige für den Kreis Paderborn",null,null,53]
[null,"1986-05-14",1986,"Vortrag","H. Tacke, Bielefeld","Markt- und Meinungsforschung im Wandel der Zeit"]
[null,"1986-05-28",1986,"Vortrag","Tödt","Milchwerke Paderborn-Rimbeck: Milchwirtschaft-Zentralverwaltungswirtschaft?","x"]
[null,"1986-06-11",1986,"Vortrag","Daniel","Veränderung in Landschaft und Bebauung unseres Raumes"]
["Dinger, Krause, Köhler","1986-07-09",1986,"Vortrag","StD Ferlings","Paderborn in Gegenwart und Zukunft"]
[null,"1986-07-20",1986,"Ausflug",null,"Familienausflug nach Dalheim, Hardehausen und Warburg Ausklang in der Diemelhütte,","x"]
[null,"1986-09-24",1986,"Vortrag","OKD Henke","LC Carolus geht in die Luft  Besichtigung des Flughafens Ahden","x"]
[null,"1986-10-01",1986,"MV","Henning","Der Handelsrichter und sein Amt",null,null,60]
[null,"1986-11-18",1986,"Besichtigung","Dinger","Weinprobe in Jaques' Weindepot","x"]
[null,"1986-11-26",1986,"Besichtigung",null,"Besuch beim PZ Aufkl Btl. 7 in Augustdorf"]
[null,"1986-12-10",1986,"Vortrag","RP Stich","Die Bezirksregierung in Ostwestfalen und Lippe - altpreußische Behörde in nachpreußischer Zeit",null,"Gäste anderer LC"]
[null,"1986-12-12",1986,"Besichtigung",null,"Stadtkirche Büren mit vorweihnachtlicher Orgelmusik","x"]
[null,"1986-12-19",1986,"Weihnachtsfeier",null,"im Kloster Corvey nach einem Besuch der Michaeliskirche auf dem Heiligenberg","x"]
[null,"1987-01-14",1987,"Vortrag","LG Präsident Safarovic","Die Gerichtsbarkeit in Paderborn","x"]
[null,"1987-01-28",1987,"Activity Abschluß","Dr. Freigang","in der Sparkasse, mit Lichtbildervortrag über Afghanistan","x"]
[null,"1987-02-11",1987,"Besichtigung","Dinger","Nixdorf und Ahorn-Park","x"]
[null,"1987-02-25",1987,"Vortrag","Prof. Dr. Kettrup","Die Belastung unserer Umwelt durch Chemikalien"]
[null,"1987-03-11",1987,"Vortrag","Hornmann/Johannknecht","Herstellung und Vertrieb von Möbeln"]
[null,"1987-03-25",1987,"Besichtigung","Dinger","Besuch der gräflichen Kurbetriebe in Bad Driburg","x"]
[null,"1987-05-28",1987,"Fahrt",null,"Pfalz: Mainz, Kirchheimbolanden, Maikammer,",null,null,null,"Hast Du Riesling in der Blutbahn………"]
[null,"1987-05-13",1987,"Vortrag","Generalvikar Kresing","Das Erzbistum Paderborn"]
["Nöcker,  Krause, Köhler","1987-07-08",1987,"Vortrag","Gereon Fritz","Paderborn und Le Mans Geschichte einer Städtefreundschaft"]
[null,"1987-09-23",1987,"Vortrag","Eicker","AIDS- ein Problem sachlich gesehen"]
[null,"1987-10-10",1987,"Besichtigung",null,"Besuch der Kunstsammlung NRW in Düsseldorf mit anschließendem Altstadtbummel","x",null,72]
[null,"1987-11-11",1987,"MV","Thiele","Blumen aus Amsterdam",null,null,74]
[null,"1987-12-09",1987,"Besichtigung","Nöcker","Klinische Radiologie im St. Josefskrankenhaus"]
[null,"1987-12-19",1987,"Vortrag","Ortner","Begegnung in der Galerie B: Erich Rentrow: \"Gemeinsam Gehen\" Texte Musik Bilder","x"]
[null,"1988-01-14",1988,"Vortrag","Wellmann","Der Schwarze Montag an den internationalen Börsen"]
[null,"1988-02-10",1988,"Vortrag","R. Wichoczek","Das moderne astronomische Weltbild"]
[null,"1988-03-09",1988,"Vortrag","Dr. Keller","Möglichkeiten moderner Tumortherapie"]
[null,"1988-04-13",1988,"MV","M. Hornmann; G. Kosfeld","Eine Reise nach Bangkok, Singapur und Australien; ein Bericht über einen Lions-Jugendaustausch",null,null,79]
[null,"1988-05-12",1988,"Ausflug",null,"Familienausflug Radtour ins westliche Münsterland: Nordkirchen, Lüdinghausen, Burg Vischering","x"]
[null,"1988-06-02",1988,"Besichtigung","Niestendietrich","VW in Wolfsburg","x"]
["Daniel, Jacoby, Köhler","1988-07-06",1988,"Besichtigung",null,"Der Hohe Dom zu Paderborn; Kunsthistorische Führung durch Domprobst Drewes"]
[null,"1988-09-13",1988,"Besichtigung",null,"Wewelsburg Führung durch das Kreismuseum und die Gedenkstätte für die Opfer der KZ","x"]
[null,"1988-10-11",1988,"Vortrag","Wiedeking","Subjektive und objektive Steuergerechtigkeit"]
[null,"1988-11-08",1988,"MV","Niestendietrich","Der Automobilmarkt der 90er Jahre",null,null,86]
[null,"1988-12-13",1988,"Vortrag","Prof. Dr. Peter Licher","Die Funktion der Religion im Kampf um internationale Gerechtigkeit"]
[null,"1989-01-09",1989,"Vortrag","Dr. Kühn München","Gemäldefälschungen naturwissenschaftlich nachgewiesen","x","mit LC PB"]
[null,"1989-02-14",1989,"Vortrag","Dr. W. Seidensticker","Entwicklungen im Recht des Arbeitskampfes",null,"Governor"]
[null,"1989-03-14",1989,"Vortrag","Lücke","Hochtechnologische Produktion Fa. Lücke Glasmalerei Peters","x"]
[null,"1989-04-11",1989,"MV","Kruse","Die öffentliche Verwaltung im Nahen Osten",null,null,91]
[null,"1989-05-10",1989,"Besichtigung",null,"Westfälisches Freilichtmuseum Detmold, Hochschule für Musik"]
[null,"1989-06-13",1989,"Vortrag","Dinger","Der EG-Binnenmarkt, Auswirkungen auf Wirtschaft und Gesellschaft"]
["Krause, Wellmann, Köhler","1989-08-09",1989,"Besichtigung",null,"Weserrenaissance Schloß Brake und Stadt Lemgo","x"]
[null,"1989-08-19",1989,"Besichtigung","Krause","Besuch des Pumpspeicherwerks Waldeck am Edersee","x"]
[null,"1989-09-12",1989,"Vortrag","Eicker","Neue Erkenntnisse in der Aids-Forschung"]
[null,"1989-10-03",1989,"MV","Wieneke","Besondere Probleme eines Gemeindepfarrers in Sennelager",null,null,96]
[null,"1989-11-10",1989,"Kochen bei PESAG",null,"Harmonisierung der EG-Gerichte, Eine unpolitische Aufgabe für Hobby-Köche","x"]
[null,"1989-12-16",1989,"Weihnachtsfeier",null,"Weihnachtskonzert des Bielefelder Kinderchors, Museumsdorf Senne, Restaurant Buschkamp"]
[null,"1990-01-09",1990,"Vortrag","KD Dr. Wesche","Probleme der Eingliederung der Aussiedler betrachtet aus Paderborner Sicht"]
[null,"1990-03-06",1990,"Vortrag","Tack","Ausbildung unter dem Gesichtspunkt des EG-Binnenmarktes, Besichtigung des TBZ",null,"mit LC PB"]
[null,"1990-04-24",1990,"MV","Kinne","Sehanforderungen an einen Bildschirmarbeitsplatz",null,null,102]
[null,"1990-05-08",1990,"Vortrag","Ortner","Künstliche Intelligenz","x","mit LC PB"]
[null,"1990-05-24",1990,"Fahrt",null,"Alsmeer","x",null,"103 ff"]
[null,"1990-06-12",1990,"Vortrag","Krause","Strom im Euro-Markt"]
["Friemuth, Wellmann, Lücke","1990-08-07",1990,"Vortrag","W. Grabitz","Quo vadis natura  Kritische Anmerkungen zum \"Paradies\" vor unserer Haustür"]
[null,"1990-08-19",1990,"Ausflug",null,"Ausflug ins Waldecker Land","x"]
[null,"1990-09-04",1990,"Vortrag","Dr. Schneider","Versorgung in Rumänien","x"]
[null,"1990-10-02",1990,"MV","Nöcker","Öffentlichkeitsarbeit (und Dinger)",null,null,110]
[null,"1990-11-06",1990,"Vortrag","Rinneberg SW Paderborn","Trinkwasser-Bedarf-Erschließung-Gefährdung"]
[null,"1990-12-04",{"$f":"YEAR(B133)","v":1990},"Weihnachtsfeier",null,"Meditation im Liborianum mit Ausklang im Rest. Amaretto","x"]
[null,"1991-01-08",1991,"Vortrag","Bruno Koch","Schattenseiten des Überflusses"]
[null,"1991-01-25",1991,"Fahrt",null,"Erfurt, Jena, Gera, Weimar"]
[null,"1991-02-12",1991,"Vortrag","Dinger","Perspektiven der Neuen Bundesländer"]
[null,"1991-03-12",1991,"MV",null,null,null,null,116]
[null,"1991-04-23",1991,"Vortrag","Päsch PESAG","Möglichkeiten der künftigen Klärschlammentsorgung"]
[null,"1991-05-07",1991,"Vortrag","Eicker","Belastung von Lebensmitteln mit Schadstoffen","x"]
[null,"1991-06-08",1991,"Besuch LC Aalsmeer",null,"Essen im Ahornsportpark","x"]
["Jacoby, Eicker, Lücke","1991-06-11",1991,"Vortrag","Dr Becker","Klimagutachten für die Stadt Paderborn"]
[null,"1991-07-09",1991,"Vortrag","Dr. Hohmann","Carolus Magnus: Namenspatron unseres Clubs"]
[null,"1991-08-31",1991,"Ausflug","Jacoby","Stift Neuenheerse und anschl. Sommerfest in Dringenberg bei L Jacoby","x"]
[null,"1991-10-01",1991,"MV",null,null,null,null,123]
[null,"1991-11-12",1991,"Vortrag","Prof. Krawinkel","Stand der Planungen zur Landesgartenschau mit dem Schwerpunktthema \"Barockgarten\""]
[null,"1991-12-11",1991,"Weihnachtsfeier","Prof. Kösters","Kurhotel Bad Driburg; Aufnahme von Prof. Richard in den Club; Vortrag: Geschichte des Weihnachtsfestes","x"]
[null,"1992-01-14",1992,"Vortrag","DG Seppeler","Arosa",null,"Governor"]
[null,"1992-02-11",1992,"Vortrag","Feldmann","10 Jahre Lionsclub Carolus","x"]
[null,"1992-03-10",1992,"MV","Heinrichsmeier","Hochschulen in den neuen Bundesländern",null,null,128]
[null,"1992-03-20",1992,"10-jährige Charterfeier unseres Clubs",null,null,null,"LC PB, Leo Club, Governor"]
[null,"1992-03-20",1992,"Vortrag","Prof. Schmeken","Die NRW-Gemeindeordnung Anspruch und Wirklichkeit","x"]
[null,"1992-05-12",1992,"Vortrag","Richard","Hochschulausbildung am Wendepunkt?"]
[null,"1992-06-18",1992,"Fahrt",null,"Quedlinburg, Wernigerode","x"]
[null,"1992-07-07",1992,"Vortrag","Prof. Dr. Kögeler","Evolution des Universums"]
["Feldmann, Eicker, Lücke","1992-09-08",1992,"Vortrag","Prof. Liesen","Ansichten eines Insiders"]
[null,"1992-10-13",1992,"MV","Nöcker","Neue Möglichkeiten der CT",null,null,133]
[null,"1992-11-17",1992,"Kochen bei PESAG",null,"Vortrag für die Damen: Umweltbewußtes Handeln im Haushalt","x"]
[null,"1992-12-15",1992,"Weihnachtsfeier",null,"Vorweihnachtliches Orgelkonzert Abdinghofkirche v.d. Kooi-Wolf; anschl. Cafe Bodemann","x"]
[null,"1993-01-12",1993,"Vortrag","Brinker","1 Jahr Radio Hochstift, Wie erfolgreich ist Paderborns erster Lokalsender?"]
[null,"1993-02-09",1993,"Vortrag","StW Dannewald","Erfahrungen eines Staatsanwalts in Brandenburg"]
[null,"1993-03-09",1993,"MV","Kuhlenkamp","Was man vom Erbrecht wissen sollte",null,null,138]
[null,"1993-05-11",1993,"Vortrag","Eicker","Krankheiten im Vergleich ( alte-neue Bundeländer)"]
["Feldmann","1993-06-26",1993,"Besichtigung",null,"Fahrt durch die Senne","x","Leo Club"]
["Oberheide, Wiedeking, Henning","1993-07-06",1993,"Präsidentschaftsübergabe",null,"Präsidentschaftsübergabe"]
[null,"1993-09-14",1993,"Vortrag","Müller","Sinn und Unsinn von Tarifverträgen"]
[null,"1993-10-19",1993,"Vortrag","G. Senn","Wird die berufliche Bildung zum Stiefkind?"]
[null,"1993-11-08",1993,"Vortrag","Frangi, PLO Büro Bonn","Die aktuelle politische Lage im nahen Osten",null,"LC PB als Ausrichter"]
[null,"1993-12-07",1993,"Weihnachtsfeier","1. Satzung des Fördervereins verabschiedet","Weihnachtsfeier im Gastlichen Dorf","x"]
[null,"1994-01-25",1994,"Besichtigung",null,"Fa. Penn-Elastic GmbH","x"]
[null,"1994-02-22",1994,"MV","Oberheide","anschließend: Bericht über Gründung des Fördervereins; Einkaufsstadt Paderborn",null,null,148]
[null,"1994-03-22",1994,"Vortrag","Weiland DAG","Gewerkschaften-notwendiger denn je?!"]
[null,"1994-04-19",1994,"Vortrag","Held, Bielefeld","Go East-Step by step  Erfahrungen eines Einzelhändlers in Moskau"]
[null,"1994-05-11",1994,"Fahrt",null,"Wien","x",null,151]
[null,"1994-06-18",1994,"Ausflug","Oberheide","Treffen beim Präsidenten bei der \"Säuferklause\" in Langeland-Erpentrup","x"]
["Hornmann,  Kuhlenkamp, Henning","1994-06-28",1994,"Präsidentschaftsübergabe",null,"Präsidentschaftsübergabe"]
[null,"1994-08-09",1994,"Vortrag","Steinhard-Unseld","Die Aufgabe und Bedeutung des Theaters in der heutigen Zeit","x"]
[null,"1994-09-13",1994,"Besichtigung","Pastor Johannsen","Die Verantwortung für ältere Menschen am Beispiel des Johannisstiftes","x"]
[null,"1994-10-11",1994,"Vortrag","Behringer GF der SW PB","Die Stadtwerke Paderborn GmbH"]
[null,"1994-11-11",1994,"Kochen bei PESAG",null,"Karnevalskochen","x"]
[null,"1994-12-13",1994,"Weihnachtsfeier",null,"Heimathaus Sande mit Trompetenquartett der Jugendmusikschule","x"]
[null,"1995-01-10",1995,"Vortrag","Hornmann","Das Arbeitnehmerüberlassungsgesetz"]
[null,"1995-02-02",1995,"Vortrag","Herr Knickenberg","Die Interessen der Industrie und des Handels bei der Stadtplanung","x"]
[null,"1995-03-14",1995,"Vortrag","Vollbach","Hören heute"]
[null,"1995-05-09",1995,"Vortrag","Wellmann","Auswirkungen des Finanz-Förderungsgesetzes","x"]
[null,"1995-06-13",1995,"MV","Wieneke","Aufnahmebeschluß Knickenberg; Die Kirche und ihre Mitbewerber in Form von Sekten",null,null,164]
["Ammenwerth,   Liemke, Wiedeking","1995-07-11",1995,"Vortrag","Frau Meermeier","Der Behinderte in unserer Gesellschaft","x"]
[null,"1995-09-12",1995,"Besichtigung",null,"Kreisfeuerwehrzentrale am Flughafen in Paderborn/Ahden","x"]
[null,"1995-10-10",1995,"MV",null,"Mitgliederversammlung",null,null,167]
[null,"1995-10-24",1995,"Vortrag","Prof. Miehlke","Künstliche Gelenke","x"]
[null,"1995-11-14",1995,"Vortrag","Martiny","Erkennungsmerkmale des deutschen Geldes Blüten-Kreditkartenbetrug","x"]
[null,"1995-12-12",1995,"Weihnachtsfeier",null,"im Tönnchen","x"]
[null,"1996-01-16",1996,"Vortrag","Feldmann","Siegerjustiz? Die Strafverfolgung von DDR-Unrechtstaten","x"]
[null,"1996-02-13",1996,"Vortrag","Prof. Kienecker","Peter Hille- ein Paderborner Dichter","x"]
[null,"1996-03-12",1996,"Vortrag","Dr. Dörrscheid","Jagd im Dunkeln - Das sonar der Fledermäuse"]
[null,"1996-04-16",1996,"MV",null,"Mitgliederversammlung Satzungsänderungen betr. Aufnahme von Mitgliedern",null,null,173]
[null,"1996-05-14",1996,"Besichtigung",null,"Stiftung Naturschutz Senne","x"]
[null,"1996-06-06",{"$f":"YEAR(B197)","v":1996},"Fahrt",null,"Fahrt ins Elsaß","x"]
["Eicker, Krause, Wiedeking","1996-07-09",1996,"Präsidentschaftsübergabe",null,"Präsidentschaftsübergabe"]
[null,"1996-09-10",1996,"Vortrag","OKD Wansleben","Kommunalreform 1999 Situation im Kreis"]
[null,"1996-09-23",1996,"Besichtigung",null,"Führung durch das Fotolabor Intercolor Pad GmbH","x"]
[null,"1996-10-05",1996,"Besichtigung",null,"Führung durch das Steinhorster Becken","x"]
[null,"1996-11-12",1996,"MV","Martiny","Computerviren",null,null,180]
[null,"1996-12-14",1996,"Weihnachtsfeier","Eicker","Weihnachtsfeier im Wald und Wiesen-Café","x"]
[null,"1997-01-14",1997,"Vortrag","Kämmerer Füser","Haushaltssituation des Kreises Paderborn"]
[null,"1997-02-04",1997,"Vortrag","Dipl-Psych. Bruns","Alkohol im Straßenverkehr","x"]
[null,"1997-03-11",1997,"Vortrag","Landrat Stücke","Kommunalreform in NRW"]
[null,"1997-05-13",1997,"MV","Richard","Ein Universitätsinstitut als Partner für Innovation",null,null,184]
[null,"1997-06-14",1997,"Präsidentschaftsübergabe","Eicker","Ausklang des Lionsjahres im Haxtergrund bei Weyers","x"]
["Wellmann, Krause, Wiedeking","1997-09-09",1997,"Vortrag","Carsten Pohl","Die Instrumente der Deutschen Terminbörse"]
[null,"1997-10-28",1997,"Besichtigung",null,"Heinz-Nixdorf-Forum"]
[null,"1997-11-11",1997,"MV",null,null,null,null,189]
[null,"1997-12-06",1997,"Weihnachtsfeier","Wellman","Weihnachtsfeier im Wald- und Wiesen-Café","x"]
[null,"1998-01-13",1998,"Vortrag","Prof. Gausemeier","Zukunftssicherung und Beschäftigung durch Innovationskraft- Eine strategische Leitlinie zur Gestaltung der Zukunft"]
[null,"1998-02-10",1998,"Vortrag","Hohenstein","Wie bereitet sich ein mittelständisches Unternehmen auf den EURO vor?"]
[null,"1998-03-10",1998,"Vortrag","Hubertus Benteler","Die Bedeutung der Globalisierung für die Benteler AG","x","LC PB, Governor"]
[null,"1998-04-21",1998,"MV",null,"Mitgliederversammlung",null,null,195]
[null,"1998-05-12",1998,"Vortrag","Prof. Freese","Vom Schmelztiegel zum Mosaik- Die USA als Modell zur multikulturellen Gesellschaft?","x"]
[null,"1998-06-11",1998,"Fahrt",null,"Fahrt nach Salzgitter, Wolfenbüttel, Kloster Wienhausen, Oldendorf und Celle","x"]
["Liemke, Knickenberg, Wiedeking","1998-08-11",1998,"Besichtigung","Liemke","Laser in der Materielbearbeitung, Vortrag und Besichtigung der LST Laserschneidtechnik GMBH Hövelhof"]
[null,"1998-09-08",1998,"Vortrag","Frau Hohenstein","Entwicklung der modernen Bildhauerei","x"]
[null,"1998-10-06",1998,"MV",null,"Mitgliederversammlung",null,null,201]
[null,"1998-11-03",1998,"Besichtigung","Liemke","Computergesteuertes Konstruieren (CAD)  ELHA Maschinenbau Hövelhof"]
[null,"1998-11-13",1998,"Kochen bei PESAG",null,"Kochen bei der PESAG","x"]
[null,"1998-12-12",1998,"Weihnachtsfeier",null,"Weihnachtsfeier im Gasthof Brink Hövelhof","x"]
[null,"1999-01-12",1999,"Vortrag","Nöcker","Eine Reise nach Australien und Neuseeland","x"]
[null,"1999-02-09",1999,"Vortrag","Pater Kellerhoff","Kinder sollen eine zukunft haben- Wir bauen eine Schule in Brasilien","x"]
[null,"1999-03-01",1999,"Vortrag","Herr Wall, Fa. Asecon","Marktplatz Internet",null,"LC PB"]
[null,"1999-04-17",1999,"Ausflug",null,"Ganztagsfahrt nach Osnabrück","x"]
[null,"1999-05-11",1999,"MV",null,"Mitgliederversammlung",null,null,210]
[null,"1999-06-08",1999,"Vortrag","Prof. Salz","Der Urknall im Labor"]
["Thiele, Knickenberg, Wiedeking","1999-08-14",1999,"Vortrag","Thiele","Im Westen nichts Neues","x"]
[null,"1999-09-11",1999,"Besichtigung",null,"Carolinger Ausstellung Besuch und Führung","x"]
[null,"1999-10-12",1999,"Vortrag","Herr Kränzle","Gartenkultur in Japan","x"]
[null,"1999-11-09",1999,"MV",null,"Mitgliederversammlung",null,null,216]
[null,"1999-12-10",1999,"Weihnachtsfeier",null,"Gasthof Spieker in Riege","x"]
[null,"2000-01-22",2000,"Ausflug","Thiele","Wanderung zur SGV-Hütte Luise Weber in Niederntudorf"]
[null,"2000-02-08",2000,"Besichtigung","Dr. Senft und Lütke-Entrup","Moderne Technologien in der Pflanzenzucht- Saatveredelung in Salzkotten Thüle",null,"LC PB"]
[null,"2000-03-07",2000,"MV",null,"Mitgliederversammlung",null,"Governor",220]
[null,"2000-04-04",2000,"Vortrag"," Krings","Schlaganfall aus Sicht des Radiologen","x"]
[null,"2000-05-02",2000,"Vortrag"," Nöcker","Von Galapagos in das Reich der Inkas","x"]
[null,"2000-06-01",2000,"Fahrt",null,"Streifzüge durch Flandern","x"]
[null,"2000-06-25",2000,"Liboritreffen",null,"Liboribummel","x"]
["Vollbach, Nöcker, Kuhlenkamp","2000-08-26",2000,"Ausflug",null,"Expo Hannover","x"]
[null,"2000-09-26",2000,"Besichtigung",null,"des Franziskanerklosters","x"]
[null,"2000-10-10",2000,"MV",null,"Mitgliederversammlung",null,null,226]
[null,"2000-11-14",2000,"Vortrag",null,"Arbeitsalltag eines Museumsdirektors","x"]
[null,"2000-12-08",2000,"Weihnachtsfeier",null,"Gasthof Spieker in Riege","x"]
[null,"2000-01-23",2000,"Besichtigung",null,"Besichtigung des Gefechtssimulations-Zentrums",null,"LC PB"]
[null,"2001-02-03",2001,"Ausflug","Lücke","FIS-Skisprung Weltcup in Willingen","x"]
[null,"2001-03-13",2001,"Vortrag","Joepen","Die Waschmaschine fürs Internet","x"]
[null,"2001-04-03",2001,"MV",null,"Mitgliederversammlung",null,null,233]
[null,"2001-04-03",2001,"Vortrag","Jacoby"," Der Handel mit China aus der Sicht eines mittelständischen Unternehmers, "]
[null,"2001-04-03",2001,"Vortrag","Nöcker","5 Tage Chinaeindrücke und Erlebnisse"]
[null,"2001-05-08",2001,"Besichtigung",null,"Atelier Hagebölling","x"]
[null,"2001-06-12",2001,"Besichtigung",null,"Windenergie im Hochstift, Besichtigung eines Windrades","x"]
["Richard, Nöcker, Kuhlenkamp","2001-07-31",2001,"Liboritreffen",null,null,"x"]
[null,"2001-08-18",2001,"Besichtigung",null,"Wanderung durch die Senne mit L Delius","x"]
[null,"2001-09-21",2001,"20 Jahre-Jubiläumsfeier",null,"Festlich gemütlicher Abend im Restaurant Fischteiche","x"]
[null,"2001-11-13",2001,"MV","Hahn","Euro hautnah","x",null,243]
[null,"2001-12-15",2001,"Weihnachtsfeier",null,"Weihnachtsfeier im Schloß Erwitte","x"]
[null,"2002-01-15",{"$f":"YEAR(B261)","v":2002},"Besichtigung",null,"Am Firmament die Sterne  Besichtigung der Sternwarte Paderborn","x"]
[null,"2002-03-12",2002,"MV","Thönissen","Zukunft der Konfessionen in Europa","x",null,248]
[null,"2002-04-16",2002,"Besichtigung",null,"Wie entsteht ein Buch  Besuch bie Media-Print","x"]
[null,"2002-05-21",2002,"Besichtigung",null,"Jungunternehmer sorgen für Aufschwung - Besuch im Technologie-Park","x"]
[null,"2002-05-30",2002,"Fahrt",null,"Bernkastel-Kues und Trier","x"]
[null,"2002-06-18",2002,"Vortrag","Richard","Vom Radreifen zum menschlichen Knie, Fachgruppe angewandte Mechanik der Uni Paderborn","x"]
["Ortner, Thönissen, Kuhlenkamp","2002-07-30",2002,"Liboritreffen","Ortner","Libori-Schnitzel-Bummel mit Ausklang im Hotel Stadthaus","x"]
[null,"2002-08-27",2002,"Ausflug",null,"Dahlheimer Sommer","x"]
[null,"2002-09-16",2002,"Vortrag","Gaby Joepen","Vorsorgevollmacht und Betreuung","x"]
[null,"2002-10-10",2002,"Vortrag","S. Wenk, Benteler AG","Die Finanzwirtshcaft der Global Player: das Beispiel Benteler AG","x"]
[null,"2002-11-05",2002,"MV","Chefredakteur Martin Lausen","Radio Hochstift","x",null,262]
[null,"2002-11-19",2002,"Besichtigung","Thönissen","Auf der Suche nach Verständigung- Das Johann Adam Möhler-Institut für Ökumenik","x"]
[null,"2002-12-01",2002,"Konzertbesuch",null,"Kaiserpfalz","x"]
[null,"2002-12-14",2002,"Weihnachtsfeier",null,"Weihnachtsfeier in Thüle","x"]
[null,"2003-01-21",2003,"Vortrag","Markus Heese","Behavioral Finance- Die Gefühle der Anleger","x"]
[null,"2003-02-14",2003,"Valentins Redoute","Ortner","Valentins Redoute in den Festräumen des Gräflichen Kurhauses Bad Driburg","x"]
[null,"2003-03-11",2003,"MV","Stv. BM Hackfort","Lob der Provinz?! - Kulturpolitik in Paderborn","x",null,270]
[null,"2003-04-08",2003,"Vortrag","U. Hamelmann","Goethes Farbenlehre","x"]
[null,"2003-05-30",2003,"Golfturnier",null,"Minimax Golfturnier  Golfclub Paderborner Land","x"]
["Schreckenberg, Thönissen, Kuhlenkamp","2003-07-08",2003,"Ausflug","Feldmann","200 Jahre Säkularisation Domäne Dalheim Führung L Feldmann","x"]
[null,"2003-07-29",2003,"Liboritreffen",null,null,"x"]
[null,"2003-09-09",2003,"Besichtigung","Richard","Railcab - Die neue Bahntechnik","x"]
[null,"2003-10-14",2003,"MV",null,null,null,null,280]
[null,"2003-11-15",2003,"Ausflug","Schreckenberg","Wandern im Paderborner Land"]
[null,"2003-12-06",2003,"Weihnachtsfeier",null,"Schloß Eringerfeld","x"]
[null,"2004-02-09",2004,"Vortrag","Schmidt","Nahrungsergänzung - Sinn oder Unsinn","x"]
[null,"2004-03-09",2004,"MV","Nöcker","Tumorvorsorge - Was sollen wir tun?",null,null,288]
[null,"2004-03-22",2004,"Theaterbesuch",null,"Mindener Stichlinge  Kabarett in den Kammerspielen","x","?"]
[null,"2004-04-24",2004,"Besichtigung",null,"Besuch in der Biologischen Station Paderborner Land","x"]
[null,"2004-05-11",2004,"Besichtigung","Thönissen","Jesuiten in Paderborn  Besuch der Jesuitenkirche und der theologischen Fakultät","x"]
[null,"2004-05-20",2004,"Fahrt",null,"Dresden","x"]
[null,"2004-06-22",2004,"Besichtigung",null,"20 Jahre Ahorn-Sportpark","x"]
["Bartels, Thönissen, Kuhlenkamp","2004-07-27",2004,"Liboritreffen",null,"Ausklang im Stadthaus","x"]
[null,"2004-08-24",2004,"Besichtigung",null,"Besichtigung des Wassergewinnungswerkes Diebesweg 60","x"]
[null,"2004-09-28",2004,"Stadtführung","Bitterberg","Auf Jüdischen Spuren in Paderborn","x"]
[null,"2004-10-12",2004,"MV","Richard","Als Sachverständiger vor Gericht",null,null,299]
[null,"2004-11-23",2004,"Vortrag","BM Paus","Stadtentwicklung in Paderborn","x"]
[null,"2004-12-11",2004,"Weihnachtsfeier",null,"Schloß Eringerfeld","x"]
[null,"2005-01-25",2005,"Besichtigung",null,"Führung durch die Wewelsburg","x"]
[null,"2005-02-08",2005,"Besichtigung",null,"Geselliger Abendauf dem Schießstand in Buke"]
[null,"2005-03-08",2005,"Besichtigung",null,"Spitzen und Stretch - Moderne Textiltechnik  Besichtigung der FA. Penn Elastic","x"]
[null,"2005-04-12",2005,"MV","Niggemeier","Hunderennen in Alsaska",null,null,309]
[null,"2005-05-10",2005,"Vortrag","Ammenwerth","Reisebericht Alaska - Land der Wälder, des Wassers und der Bären","x"]
[null,"2005-06-24",2005,"Ausflug","Bartels","Fritzlar, Wildungen, Waldeck","x"]
["Krings, Thönissen, Kuhlenkamp","2005-07-26",2005,"Liboritreffen",null,"Ausklang im Stadthaus","x",null,314]
[null,"2005-10-11",2005,"Vortrag","Nöcker","Reisebericht Vom Sossusulei in das Okawango-Delta ","x"]
[null,"2005-11-08",2005,"MV",null,"ohne Vortrag",null,null,318]
[null,"2005-12-10",2005,"Weihnachtsfeier",null,"Balthasar","x"]
[null,"2006-01-10",2006,"Vortrag","W. Malzahn","Diamanten - Mythos und Realität","x"]
[null,"2006-02-14",2006,"Vortrag","Prof. Wemhoff","Canossa","x","alle 3 Clubs"]
[null,"2006-03-14",2006,"MV","H. Knüppel","Mikrokredite in der Dritten Welt",null,null,327]
[null,"2006-04-11",2006,"Vortrag","Th. Postert","Frauen reden - Männer finden den Weg","x"]
[null,"2006-05-09",2006,"Vortrag","Dr. Düllings","Zukunft der Krankenhausversorgung im Kreis Paderborn","x"]
[null,"2006-06-09",2006,"Fahrt",null,"Stuttgart, Ludwigsburg, Tübingen, Maulbronn","x"]
["Hahn, Thönissen, Kuhlenkamp","2006-07-11",2006,"MV",null,"Vorbereitung der Jubiläumsfeier",null,null,336]
[null,"2006-07-25",2006,"Liboritreffen",null,"Treffen in der VIP-Lounge","x"]
[null,"2006-08-08",2006,"Vortrag","Prof. Wagner","Bacheler und Master an einer privaten Fachhochschule","x"]
[null,"2006-09-11",2006,"Besichtigung","Prof. Wemhoff","Canossa- Erschütterung der Welt:Geschichte, Kunst und Kultur am Aufgang der Romantik","x"]
[null,"2006-10-17",2006,"Vortrag","K.-H. Stiller, Wincor-Nixdorf","Ein Weltunternehmen aus Paderborn","x"]
[null,"2006-11-07",2006,"MV","Huttrop-Hage","Sponsoring-Sinn oder Unsinn?",null,null,343]
[null,"2006-12-17",2006,"Weihnachtsfeier",null,"Balthasar","x"]
[null,"2007-01-09",{"$f":"IF(B322>1900,YEAR(B322),\"\")","v":2007},"Besichtigung","Fritz Henze Airportforum PB","Zukunftsperspektiven eines Regionalflughafens","x"]
[null,"2007-02-13",2007,"Besichtigung","Jürgen Geisler","Technologiepark","x"]
[null,"2007-03-13",2007,"MV",null,"ohne Vortrag",null,null,351]
[null,"2007-04-10",2007,"Vortrag","Kunstverein PB in der Städt. Galerie","Wieviel Moderne darf es sein?","x"]
[null,"2007-05-15",2007,"Besichtigung","Robert Heggemann","Lösungen für Automotive, Autosport und Aerospace","x"]
[null,"2007-06-30",2007,"25 Jahre Jubiläumsball","Bürgerhaus Schloß Neuhaus",null,"x","alle 3 Clubs"]
["Tack, Thönissen, Kuhlenkamp","2007-07-31",2007,"Liboritreffen",null,"Treffen in der VIP-Lounge","x"]
[null,"2007-09-04",2007,"Vortrag","Klaus Brandner MdB","Sind Rente und Arbeitsmarkt noch zu retten?","x"]
[null,"2007-10-23",2007,"Vortrag","Ingbert Koppermann, GF ARGE PB","ARGE im Spannungsfeld von Arbeitsmarkt und Sozilapolitik","x"]
[null,"2007-11-06",2007,"Vortrag","Werner J. Terlohr, stv. VV Vereinigte IKK PB","Gesundheitsreform und kein Ende?","x"]
[null,"2007-11-20",2007,"MV",null,"ohne Vortrag","x",null,371]
[null,"2007-12-15",2007,"Weihnachtsfeier",null,"Balthasar","x"]
[null,"2008-01-22",2008,"Vortrag","Dr. Ulrich Bitthin Volksbank Paderborn.-Höxter-Detmold","Genossenschaften - Relikte oder zukunftsorientierte Unternehmensformen?","x"]
[null,"2008-02-12",2008,"Vortrag","Prof. Dr, Gerhard Klippstein","Bürokratieabbau"]
[null,"2008-03-04",2008,"MV",null,"ohne Vortrag",null,null,378]
[null,"2008-04-01",2008,"Vortrag","Ursula Wichmann, Direktorin der Kreispolizeibehörde PB","Wie sicher ist Paderborn?","x"]
[null,"2008-04-15",2008,"Besichtigung","Fa. Wächter Packautomatik GmbH, Haaren",null,"x"]
[null,"2008-05-13",2008,"Vortrag","Prof. Dr. Richard Merk","Private Hochschulen-die bessere Alternative?"]
[null,"2008-05-22",2008,"Fahrt",null,"Berlin","x"]
[null,"2008-06-24",2008,"Besichtigung",null,"BTZ Paderborn","x"]
["Wiedeking, Richard, Wellmann","2008-07-29",2008,"Liboritreffen",null,"Treffen in der VIP-Lounge","x"]
[null,"2008-08-26",2008,"Vortrag","Nöcker","Mit dem Postschiff in die Antarktis","x"]
[null,"2008-09-23",2008,"Vortrag","Keysers","Auf sicherem Boden- optische und technische Anforderungen an den Beton","x"]
[null,"2008-10-28",2008,"Besichtigung",null,"Fleischwertkost Hoppe Gmbh Wünnenberg-Haaren","x"]
[null,"2008-11-25",2008,"MV",null,"ohne Vortrag",null,null,391]
[null,"2008-12-13",2008,"Weihnachtsfeier",null,"Il Postino","x"]
[null,"2009-01-13",2009,"Vortrag","Bernhard Hartmann","Die Stadt- als Wirtschaftsunternehemen?!"]
[null,"2009-02-24",2009,"MV",null,"ohne Vortrag",null,null,396]
[null,"2009-03-24",2009,"Besichtigung","Fa ELHA Maschinenbau Liemke GmbH","mit großzügiger Bewirtung","x"]
[null,"2009-05-12",2009,"Vortrag","Thönissen","Gibt es einen Kampf der Kulturen? Christentum und Islam vor neuen Herausforderungen","x"]
[null,"2009-06-09",2009,"Vortrag","K.H. Sommermeyer Fa. Himolla/ Fa. Welle-Möbel","Erkennen, Entwickeln, Verkaufen","x"]
[null,"2009-07-28",2009,"Liboritreffen"]
["Joepen, Hahn, Wellmann","2009-09-01",{"$f":"IF(B354>1900,YEAR(B354),\"\")","v":2009},"Besichtigung","Feldmann","Führung im Kloster Dalheim","x"]
[null,"2009-10-06",2009,"MV",null,"ohne Vortrag",null,null,405]
[null,"2009-11-04",2009,"Vortrag","Prof. Dr. Brinkmann, Uni PB","Supercomputer- nur zum Schachspielen?","x"]
[null,"2009-11-24",2009,"Vortrag","Gnisa","Verbände in der parlamentarischen Demokratie","x"]
[null,"2009-12-12",2009,"Weihnachtsfeier",null,"Il Postino","x"]
[null,"2010-01-26",2010,"Besichtigung",null,"\"Shannon- Codes und Clowns\"  Besuch der Sonderausstellung im Heinz-Nixdorf-Forum","x","Drei Hasen"]
[null,"2010-02-23",2010,"MV"]
[null,"2010-03-23",2010,"Vortrag","Horst Joepen anstelle des verhinderten Daniel Kusio, CEO der BV Capital, Schweiz","Risikokapital- über die Nützlichkeit der Heuschrecke"]
[null,"2010-04-24",2010,"Konzertbesuch",null,"\"50 Jahre Lions Paderborn\" Jubiläumskonzert und Empfang in der Kaiserpfalz","x","alle 3 Clubs"]
[null,"2010-06-03",2010,"Fahrt",null,"Lionsfahrt \"Geist, Geld und Wein\" in den Rheingau und nach Frankfurt a.M.","x"]
["Thönissen, Gnisa, Wellmann","2010-07-10",2010,"Mit Friedrich Spee durch das Kirchenjahr Orgelkonzert in der Marktkirche","Organist: Sebastian Freitag","Empfang im Garten der Theologischen Fakultät","x"]
[null,"2010-07-27",2010,"Liboritreffen"]
[null,"2010-09-14",2010,"Besichtigung","Prof. Dr. Christpoh Stiegemann","Verehrung der Heiligen. Neupräsentation der Kunstsammlung des Paderborner Diözesanmuseums","x"]
[null,"2010-10-05",2010,"MV"]
[null,"2010-11-09",2010,"Besichtigung","Dr. Hermann-Josef Schmalor","Spuren mittelalterlicher Klosterbibliotheken: Corvey, Böddeken, Abdinghof","x"]
[null,"2010-12-11",2010,"Weihnachtsfeier",null,"Gut Ringelsbruch","x"]
[null,"2011-01-11",2011,"Besichtigung","Msgr. Uwe Wischkony Erzbischöfliches Priesterseminar","Priesterausbildung heute","x"]
[null,"2011-02-08",2011,"Besichtigung","GV PrälatAlfons Hardt","Verwaltung in der Kirche: Der Generalvikar","x"]
[null,"2011-03-08",2011,"MV"]
[null,"2011-03-23",2011,"Besichtigung","GF Elmar Kleinert","Flughafen Paderborn, neuer Hangar","x","alle 3 Clubs"]
[null,"2011-04-12",2011,"Vortrag","LF Thönissen","Was heißt Unfehlbarkeit des Papstes?","x"]
[null,"2011-05-10",2011,"Besichtigung","mit Herrn Helmut Peters","Glasmalerei Peters, Paderborn","x"]
[null,"2011-06-07",2011,"Besichtigung","VV Dr. Böger","Warum braucht die Kirche eine Bank?","x"]
["Martiny, Gnisa, Wellmann","2011-07-12",2011,"Vortrag","LF Nöcker","Burma-Myanmar, im Herzen eines unbekannten Landes","x"]
[null,"2011-07-26",2011,"Liboritreffen",null,"Zusammensein Libori Lounge Jühenplatz","x"]
[null,"2011-09-10",2011,"EON-Reiter CUP","Führung LF Kai Huttrop-Hage",null,"x"]
[null,"2011-10-11",2011,"MV"]
[null,"2011-11-08",2011,"Vortrag","LF Martiny","Der neue Personalausweis","x"]
[null,"2011-11-25",2011,"Auftakt Activity",null,null,"x"]
[null,"2011-12-10",2011,"Weihnachtsfeier",null,"Gut Ringelsbruch","x"]
[null,"2012-01-10",2012,"Besichtigung","Prof. Dr. Stiegemann","Besuch der Ausstellung: Franziskus: Licht aus Assisi","x"]
[null,"2012-02-14",2012,"Vortrag","Prof. Dr. Arno Klönne","Jugendbewegung 1913 - 2013","x"]
[null,"2012-03-13",{"$f":"IF(B386>1900,YEAR(B386),\"\")","v":2012},"MV"]
[null,"2012-03-28",2012,"Besichtigung","Dr. Hanselmann","Präsentation dSpace","x","alle 3 Clubs"]
[null,"2012-05-08",2012,"Vortrag","LF Brors","Wenn das Hören nicht mehr funktioniert: Moderne Möglichkeiten der Hörrehabilitation","x"]
[null,"2012-06-07",2012,"Fahrt",null,"Amsterdam - Rotterdam - Delft","x"]
["Keysers, Nöcker, Wellmann","2012-08-14",2012,"Besichtigung","Vater und Sohn Hülsemann","Gut Lippesee: Von der Idee zur Realisierung ","x"]
[null,"2012-09-25",2012,"Besichtigung",null,"Ritzenhoff Cristal AG, Marsberg Gläser vom Rohling zum (Kult-) Objekt Entwurf, Produktion, Logistik","x"]
[null,"2012-10-20",2012,"Besichtigung","Helmut Böhmer","Sportanlage Haxterberg Paderborn","x"]
[null,"2012-11-06",2012,"MV"]
[null,"2012-11-30",2012,"Auftakt Activity",null,"Weihnachtsmarkt","x"]
[null,"2012-12-15",2012,"Weihnachtsfeier",null,null,"x"]
[null,"2013-01-15",2013,"Besichtigung","LF Plonka","Maler-Einkauf","x"]
[null,"2013-02-12",2013,"Besichtigung",null,"Ahorn-Sportpark Paderborn","x"]
[null,"2013-03-04",2013,"Vortrag","Prof. Dr. Claudia Buch","Jahresgutachten des Sachverständigenrates","x","alle 3 Clubs"]
[null,"2013-03-12",2013,"MV"]
[null,"2013-04-13",2013,"Besichtigung","Tagesfahrt","Industrie/Kultur Zeche Zollverein","x"]
[null,"2013-05-15",2013,"Besichtigung",null,"Besuch der Test- und Präsentationsstrecke \nBilster Berg","x","alle 3 Clubs"]
[null,"2013-06-11",2013,"Vortrag","Prof. Dr.-Ing. Matthias M. Middel","Ein bunter Blumenstrauß des Beton","x"]
["Knickenberg, Ammenwerth, Joepen","2013-08-03",2013,"Besichtigung",null,"Ausstellungsbesuch \"Credo\"","x"]
[null,"2013-09-10",2013,"Vortrag","Dr. h.c. Dipl.-Ing.Werner Stengel","\"Zwischen Himmel und Erde\" -die Achterbahn-","x"]
[null,"2013-10-08",2013,"MV"]
[null,"2013-11-05",2013,"Vortrag","R. Wiechoczek/Dipl.-Ing. A. Hoppe von der Planetariumsgesellschaft OWL e.V.","Ist das Weltall besiedelt?","x"]
[null,"2013-12-14",2013,"Weihnachtsfeier",null,null,"x"]
[null,"2014-01-28",2014,"Grünkohlessen",null,"Gemeinsames Grünkohlessen der 3 Lions Clubs","x","alle 3 Clubs"]
[null,"2014-02-25",2014,"Vortrag","LF Nöcker","Grönland - die kalte Wüste","x"]
[null,"2014-03-11",2014,"MV"]
[null,"2014-04-15",2014,"Vortrag","Bürgermeister Paus","Was tun? Konversionsflächen in Paderborn","x"]
[null,"2014-05-20",2014,"Vortrag","LF Richard","Das FAM-Team","x"]
[null,"2014-06-19",2014,"Fahrt",null,"Lionsfahrt in den Norden: Bremen, Bremerhaven, Emden, Papenburg","x"]
["Preising, Ammenwerth, Joepen","2014-07-05",2014,"Präsidentschaftsübergabe",null,null,"x"]
[null,"2014-08-19",2014,"Vortrag","Emin Özel","Ein Jahr Schützenkönig in Paderborn","x"]
[null,"2014-09-09",2014,"Besichtigung","Bremer AG","Was haben Amazon & Co mit Paderborn zu tun?","x"]
[null,"2014-10-21",2014,"MV"]
[null,"2014-11-11",{"$f":"IF(B418>1900,YEAR(B418),\"\")","v":2014},"Vortrag","Thönissen","1614-2014 Von der Jesuitenuniversität zur Theologischen Fakultät","x"]
[null,"2014-12-20",2014,"Weihnachtsfeier",null,null,"x"]
[null,"2015-01-19",2015,null,"Die Paderborner Kaffeekrieg Oper von 1882","Eine karnevalistische Maskerade des Teufels in unserer Welt","x","alle 3 Clubs"]
[null,"2015-02-10",2015,"Vortrag","Ammenwerth","3 Löwen in Äthiopien","x"]
[null,null,null,null,"Nöcker"]
[null,null,null,null,"Thiele"]
[null,"2015-03-10",{"$f":"IF(B424>1900,YEAR(B424),\"\")","v":2015},"MV"]
[null,"2015-04-14",2015,"Vortrag","Dr. Carsten Linnemann","Mehr Erfolg durch Mittelstand","x"]
[null,"2015-05-12",2015,"Vortrag","Prof. Dr. Claus Reinsberger","Der Demenz davonlaufen?","x"]
[null,"2015-06-09",2015,"Vortrag","BM Michael Dreier","Schönes in und aus Paderborn","x"]
[null,"2015-06-27",2015,"Präsidentschaftsübergabe",null,null,"x"]
["Gnisa, Ammenwerth, Joepen","2015-08-11",2015,"Vortrag","Andrea Titz-Pressesprecherin OLG München","Hoeneß, Ecclestone &Co- Welchen einfuß haben die Medien auf die Gerichte?","x"]
[null,"2015-09-08",2015,"Vortrag","LF Baur","Schäfchen zählen mal anders","x"]
[null,"2015-10-13",2015,"Besichtigung","Dr. Stiegemann, Diözesanmuseum","Caritas - Nächstenliebe von den frühen Christen bis zur Gegenwart","x"]
[null,"2015-11-07",2015,"Night of the Lions",null,"Arosa","x"]
[null,"2015-12-12",2015,"Weihnachtsfeier",null,"Gut Lippesee","x"]
[null,"2016-01-26",2016,"Vortrag","Dr. Jürgen Löbbe","Vererben - aber ohne Streit","x"]
[null,"2016-02-25",2016,"Besichtigung",null,"LWL Maßregelvollzugseinrichtung Herne","x","Leos"]
[null,"2016-03-22",2016,"MV"]
[null,"2016-04-19",2016,"Besichtigung",null,"Trainings- und Leistungszentrum des SC Paderborn","x"]
[null,"2016-05-03",2016,"Besichtigung",null,"Landesgartenschaugelände Bad Lippspringe","x","alle 3 Clubs"]
[null,"2016-05-26",2016,"Fahrt",null,"BGH Karlsruhe und Baden Baden","x"]
[null,"2016-06-14",2016,"Vortrag","Peter Wilhelm Bee","Architektur heute - Funktionalität oder Kunst?","x"]
["Vollbach, Plonka, Joepen","2016-07-01",2016,"Präsidentschaftsübergabe","Markt 5",null,"x"]
[null,"2016-07-26",2016,"Liboritreff in der Libori-Oase",null,null,"x"]
[null,"2016-09-06",2016,"Besichtigung","Pfarrer Dr. Eckhard Düker","1000 Jahre Abdinghof, Führung durch die Kirche","x"]
[null,"2016-10-04",2016,"Besichtigung","Carolin Dieckhoff","Theater Paderborn, Vorhang auf","x"]
[null,"2016-10-25",2016,"Besichtigung",null,"Fa. Bette","x"]
[null,"2016-11-08",2016,"MV"]
[null,"2016-11-21",2016,"Activity-Auftakt",null,null,"x"]
[null,"2016-12-17",2016,"Weihnachtsfeier",null,null,"x"]
[null,null,""]
[null,null,""]
[null,null,""]
[null,null,""]
[null,null,""]
[null,null,""]
[null,null,""]
["Schmidt, Plonka Joepen","2017-07-06",{"$f":"IF(B456>1900,YEAR(B456),\"\")","v":2017},"Stammtisch Markt 5"]
[null,"2017-07-11",2017,"Besichtigung","Prof. Dr. Stiegemann","Ausstellungsführung: Wunder Roms","x"]
[null,"2017-07-26",2017,"Liboritreff in der Libori-Oase",null,null,"x"]
[null,"2017-09-07",2017,"Stammtisch Markt 5"]
[null,"2017-09-12",2017,"Besichtigung","Betriebsführung Kaimann Hövelhof","Elastomere Dämmstoff","x"]
[null,"2017-10-10",2017,"Besichtigung","Dr. Alexandra Sucrow","Besuch des Kunstvereins Paderborn","x"]
[null,"2017-10-24",2017,"MV"]
[null,"2017-11-07",2017,"Vortrag","Hubertus Beringer, Landwirt und Vorsitzender des Westf.-Lippischen Landwirtschaftsverbandes","Heutige Anforderungen an die Landwirtschaft und Tierhaltung","x"]
[null,"2017-12-15",2017,"Weihnachtsfeier",null,null,"x"]
[null,"2018-01-09",2018,"Vortrag","Martin Lotze","Der chronische Schmerz","x"]
[null,"2018-02-06",2018,"Vortrag","Markus Kamann","Wenn keiner arbeitet, wer zahlt demnächst noch Steuern","x"]
[null,"2018-03-06",2018,"Besichtigung",null,"Betriebsbesichtigung HORATEC, Hövelhof","x"]
[null,"2018-03-20",2018,"MV"]
[null,"2018-04-08",2018,null,null,"100 Jahre Lions International","x","alle 3 Clubs"]
[null,"2018-04-14",2018,null,null,"Night of the Lions","x"]
[null,"2018-05-08",2018,"Vortrag","Ansgar Käter","Digitalisierung im Bankensektor","x"]
[null,"2018-05-31",2018,"Fahrt",null,"Auf den Spuren Friedrichs des Großen","x"]
[null,"2018-06-12",2018,"Vortrag","Manfred Webel","Kreativ-Produktiv","x"]
[null,"2018-07-03",2018,"Präsidentschaftsübergabe",null,null,"x"]
[null,"2018-07-31",2018,"Freunde feiern Libori",null,null,"x"]
[null,"2018-08-14",2018,"Vortrag","Sabine Hartmann","Logistik weltweit-nationale und intern. Transporte","x"]
[null,"2018-09-04",2018,"Vortrag","Prof. Dr. Helmut Heseker","Ernährungsirrtümer - Ursachen und Folgen","x"]
[null,"2018-10-09",2018,"MV"]
[null,"2018-11-20",2018,"Vortrag","Prof. Dr. Stiegemann","GOTIK - Der Paderborner Dom und die Baukunst des 13. Jahrhunderts in Europa","x"]
[null,"2018-11-26",2018,"Activity-Auftakt",null,null,"x"]
[null,"2018-12-15",2018,"Weihnachtsfeier",null,null,"x"]
[null,"2019-01-08",2019,"Stammtisch Carolus","Restaurant Bobberts",null,"x"]
[null,"2019-01-22",2019,"Vortrag","Benteler","Benteler Fertigung von Automobilkomponenten in Zeiten der Digitalisierung","x"]
[null,"2019-02-17",2019,null,null,"Benefizkonzert des Vokalensembles \"Quartonal\"","x","alle 3 Clubs"]
[null,"2019-03-05",2019,"Vortrag","LF Fredrik Rimrod","Apotheker - Mittler zwishen Arzt und Patient?!","x"]
[null,"2019-04-09",2019,"MV"]
[null,"2019-04-23",2019,"Stammtisch Carolus","Café Central",null,"x"]
[null,"2019-05-07",{"$f":"IF(B488>1900,YEAR(B488),\"\")","v":2019},"Vortrag","LF Jacoby","Unternehmen Jacoby","x"]
[null,"2019-05-21",2019,"Vortrag",null,"Technologiepark - Ein Standort für technologieorientierte Unternehmer und etablierte Unternehmen","x"]
[null,"2019-06-15",2019,null,"Carolus Familientag",null,"x"]
[null,"2019-06-25",2019,"Vortrag","Bürgermeister Dreier","Paderborn - Gegenwart und Zukunft","x"]
[null,null,""]
[null,null,""]
[null,null,""]
[null,null,""]
[null,null,""]
[null,null,""]
[null,null,""]
[null,null,""]
[null,null,""]
[null,null,""]
[null,null,""]
[null,null,""]
[null,null,""]
[null,null,""]
[null,null,""]
[null,null,""]
[null,null,""]
[null,null,""]
[null,null,""]
[null,null,""]
[null,null,""]
[null,null,""]
[null,null,""]
[null,null,""]
[null,null,""]
[null,null,""]
[null,null,""]
[null,null,""]
[null,null,{"$f":"IF(B520>1900,YEAR(B520),\"\")","v":""}]
[null,null,""]
[null,null,""]
[null,null,""]

{"sheet":"Priv. Ver.","index":8,"n_rows":324,"n_cols":5,"rows_kept":324,"cut":false,"hidden":false,"merged":[]}
["Erfaßt wurden nur reine Lionsveranstaltungen, keine Feiern, zu denen auch andere Gäste eingeladen wurden"]
[{"$f":"COUNTA(B4:B501)","v":319},{"$f":"SUBTOTAL(3,B4:B500)","v":319},"Anzahl der Einladungen des ausgewählten Gastgebers",{"$f":"SUBTOTAL(3,D4:D500)","v":32}]
["Datum","Gastgeber","Besonderer Anlaß","mit Damen"]
["1981-09-23","Köhler"]
["1981-10-07","Jacoby","anl. des 75. -jähriges Geschäftsjubiläums","x"]
["1981-11-25","Krause","noch kein Gästebuch vorhanden"]
["1982-01-27","Kuhlenkamp","noch kein Gästebuch vorhanden"]
["1982-03-24","Friemuth","noch kein Gästebuch vorhanden"]
["1982-04-28","Liemke","noch kein Gästebuch vorhanden"]
["1982-05-26","Hornmann","noch kein Gästebuch vorhanden"]
["1982-06-23","Tietmeier"]
["1982-07-14","Kuhlenkamp"]
["1982-08-25","Henning"]
["1982-10-20","Oberheide"]
["1982-10-24","Dinger","Frühschoppen als Einstand","x"]
["1983-01-26","Lücke"]
["1983-02-23","Feldmann"]
["1983-03-23","Johannknecht"]
["1983-04-29","Schlewing"]
["1983-05-25","Heinrichsmeier"]
["1983-06-25","Liemke","Abschluß des Lionsjahres auf dem Tennisplatz in Hövelhof","x"]
["1983-09-28","Lücke"]
["1983-10-26","Kruse"]
["1983-11-23","Nöcker"]
["1984-01-25","Daniel"]
["1984-02-22","Jacoby"]
["1984-03-28","Henning"]
["1984-04-25","Dinger"]
["1984-05-23","Liemke"]
["1984-08-22","Johannknecht","Auftakt zum Präsidentenjahr","x"]
["1984-09-26","Kuhlenkamp"]
["1984-10-31","Friemuth"]
["1984-11-28","Feldmann"]
["1985-01-23","Krause"]
["1985-02-27","Nöcker"]
["1985-03-27","Heinrichsmeier"]
["1985-04-24","Ammenwerth",null,null," Governorbesuch"]
["1985-05-22","Hornmann"]
["1985-07-24","Köhler","Ferientreffen in der Sparkasse"]
["1985-08-10","Friemuth","Bilderabend für Frankenlandfahrer","x"]
["1985-09-25","Friemuth"]
["1985-10-03","Tödt","40. Geburtstag ","x"]
["1985-11-09","Tack","40. Geburtstag ","x"]
["1986-11-22","Krause"]
["1986-04-23","Dinger"]
["1986-06-25","Feldmann","50. Geburtstag","x"]
["1986-07-20",null,"Familienausflug Dalheim Hardehausen Warburg","x"]
["1986-09-05","Friemuth","Ferienabschlußtreffen","x"]
["1986-09-24","Kruse","65. Geb. L Kruse im Adam- und-Eva-Haus","x"]
["1986-10-22","Ortner"]
["1986-11-12","Henning"]
["1987-06-10","Jacoby","in Dringenberg"]
["1987-06-24","Nöcker"]
["1987-08-28","Nöcker","Ferientreffen ","x"]
["1987-09-09","Tack"]
["1987-10-21","Lücke"]
["1987-11-25","Daniel"]
["1988-01-27","Liemke","Paderborner Lions in Kanada"]
["1988-02-24","Wellmann"]
["1988-03-23","Henning"]
["1988-04-27","Heinrichsmeier","60. Geb.","x"]
["1988-05-25","Hornmann"]
["1988-06-15","Daniel","60. Geb. im Ahornpark","x"]
["1988-08-23","Johannknecht"]
["1988-09-27","Lücke"]
["1988-10-25","Wieneke"]
["1988-11-22","Krause"]
["1989-01-24","Nöcker"]
["1989-02-28","Feldmann"]
["1989-03-14","Lücke","anl. Besichtigung Fa. Lödige und Glasmalerei Peters","x","ohne Gästebucheintrag"]
["1989-04-25","Thiele"]
["1989-05-23","Oberheide"]
["1989-06-27","Tack"]
["1989-08-29","Ammenwerth"]
["1989-09-26","Kruse","68. Geburtstag"]
["1989-10-24","Liemke"]
["1989-11-21","Eicker"]
["1990-01-23","Daniel"]
["1990-03-27","Dinger"]
["1990-05-22","Friemuth"]
["1990-07-21","Friemuth","Ferientreffen","x"]
["1990-08-21","Köhler"]
["1990-09-18","Nöcker"]
["1990-10-16","Wieneke"]
["1990-11-20","Johannknecht"]
["1990-12-18","Eicker"]
["1991-01-22","Feldmann"]
["1991-02-26","Jacoby"]
["1991-03-26","Wiedeking"]
["1991-04-09","Kuhlenkamp"]
["1991-05-21","Lücke"]
["1991-06-26","Friemuth","Prof. Richard als Gast"]
["1991-08-31","Jacoby","Sommerfest nach Besichtigung Schloß Neuenheerse","x"]
["1991-09-24","Wellmann"]
["1991-10-22","Thiele"]
["1991-11-26","Krause"]
["1992-01-21","Henning"]
["1992-02-25","Daniel"]
["1992-04-28","Heinrichsmeier"]
["1992-05-26","Nöcker"]
["1992-06-30","Kinne"]
["1992-10-27","Wiedeking"]
["1992-11-24","Eicker"]
["1993-01-26","Liemke"]
["1993-03-23","Wellmann"]
["1993-04-20","Johannknecht"]
["1993-05-25","Oberheide"]
["1993-06-15","Hornmann"]
["1993-08-21","Henning"]
["1993-09-28","Kloke","Gründungssitzung des Fördervereins"]
["1994-11-01","Ammenwerth"]
["1994-02-09","Daniel"]
["1994-03-15","Wieneke"]
["1994-05-03","Friemuth"]
["1994-08-23","Wellmann"]
["1994-09-27","Eicker"]
["1994-10-25","Vollbach"]
["1994-11-22","Krause"]
["1995-01-24","Lücke"]
["1995-02-21","Nöcker"]
["1995-03-28","Henning"]
["1995-04-25","Thiele"]
["1995-05-23","Bartels"]
["1995-07-01","Hornmann","Präsidentschaftsübergabe beim Präsidenten","x"]
["1995-11-28","Jacoby"]
["1996-01-23","Krause"]
["1996-02-27","Eicker"]
["1996-04-23","Daniel"]
["1996-05-28","Friemuth"]
["1996-06-25","Richard"]
["1996-07-06","Ammenwerth",null,"x"]
["1996-08-23","Johannknecht"]
["1996-10-22","Eicker"]
["1996-11-26","Oberheide"]
["1997-02-25","Ammenwerth"]
["1997-04-22","Vollbach"]
["1997-05-27","Bartels"]
["1997-08-09","Wellmann"]
["1997-08-26","Friemuth"]
["1997-09-23","Henning"]
["1997-10-07","Hohenstein"]
["1997-11-25","Feldmann"]
["1998-01-27","Liemke"]
["1998-02-24","Knickenberg"]
["1998-03-24","Ortner"]
["1998-04-28","Bartels"]
["1998-05-26","Lücke"]
["1998-06-23","Wellmann","Präsidentschaftsübergabe"]
["1998-08-23","Liemke",null,"x"]
["1998-09-22","Henning"]
["1998-10-20","Nöcker"]
["1998-11-24","Martiny"]
["1999-01-26","Knickenberg"]
["1999-02-23","Friemuth"]
["1999-03-23","Ammenwerth"]
["1999-04-27","Richard"]
["1999-05-28","Johannknecht"]
["1999-06-27","Liemke","Präsidentschaftsübergabe","x"]
["1999-08-31","Krause"]
["1999-09-28","Krings"]
["1999-10-26","Vollbach"]
["1999-11-23","Wieneke"]
["2000-01-11","Schreckenberg"]
["2000-02-22","Ammenwerth"]
["2000-03-21","Jacoby"]
["2000-04-18","Richard"]
["2000-05-16","Joepen"]
["2000-06-13","Johannknecht"]
["2000-08-15","Henning"]
["2000-10-24","Ortner"]
["2000-11-28","Nöcker"]
["2000-01-09","Schreckenberg"]
["2001-02-27","Tack"]
["2001-03-27","Vollbach"]
["2001-04-24","Richard"]
["2001-05-29","Thiele"]
["2001-06-23","Vollbach","Präsidentschaftsübergabe","x"]
["2001-08-28","Krings"]
["2001-09-11","Ammenwerth"]
["2001-10-23","Hahn"]
["2001-11-27","Jacoby"]
["2002-01-29","Wellmann"]
["2002-02-26","Feldmann"]
["2002-03-19","Friemuth"]
["2002-04-30","Bartels"]
["2002-09-24","Henning"]
["2002-10-22","Liemke"]
["2003-01-07","Ortner"]
["2003-03-25","Nöcker"]
["2003-04-29","Preising"]
["2003-06-10","Vollbach"]
["2003-06-24","Ortner","Präs.-übergabe - Kinder, wie die Zeit vergangen ist","x"]
["2003-09-23","Niggemeier"]
["2003-10-28","Wellmann"]
["2003-11-25","Schmidt"]
["2004-01-27","Krause"]
["2004-02-24","Knickenberg"]
["2004-04-27","Wiedeking"]
["2004-06-08","Schreckenberg","Präsidentschaftsübergabe","x"]
["2004-07-13","Bartels"]
["2004-08-10","Krings"]
["2004-09-14","Thiele"]
["2004-11-09","Martiny"]
["2005-01-11","Johannknecht"]
["2005-02-22","Feldmann"]
["2005-03-22","Liemke"]
["2005-04-26","Friemuth"]
["2005-05-24","Henning"]
["2005-06-21","Bartels","Präsidentschaftsübergabe","x"]
["2005-07-12","Schreckenberg"]
["2005-08-23","Vollbach"]
["2005-09-13","Ammenwerth"]
["2005-10-25","Lücke"]
["2005-11-22","Joepen"]
["2006-01-24","Krause"]
["2006-02-28","Wieneke"]
["2006-03-28","Thönissen"]
["2006-04-25","Richard"]
["2006-05-23","Hahn"]
["2006-06-27","Tack"]
["2006-08-08","Krings"]
["2006-09-26","Keysers"]
["2006-10-31","Jacoby","Feier zur Erinnerung an die offizielle Gründung am 28.10.1981","x"]
["2006-11-21","Wiedeking"]
["2007-01-23","Preising"]
["2007-02-27","Huttrop-Hage"]
["2007-03-27","Oberheide"]
["2007-04-24","Kuhlenkamp"]
["2007-05-29","Wellmann"]
["2007-06-12","Nöcker"]
["2007-07-13","Tack","Präsidentschaftsübergabe","x"]
["2007-08-14","Vollbach"]
["2007-09-18","Thiele"]
["2007-10-09","Schreckenberg"]
["2007-12-04","Liemke"]
["2008-01-08","Friemuth"]
["2008-02-26","Feldmann"]
["2008-04-29","Ammenwerth"]
["2008-06-10","Bartels"]
["2008-07-18","Wiedeking","Präsidentschaftsübergabe","x"]
["2008-08-12","Friemuth"]
["2008-09-09","Johannknecht"]
["2008-11-11","Hahn"]
["2008-12-09","Wieneke"]
["2009-01-27","Martiny"]
["2009-02-10","Richard"]
["2009-03-10","Vollbach"]
["2009-04-21","Ortner"]
["2009-05-26","Knickenberg"]
["2009-06-23","Schreckenberg"]
["2009-07-04","Joepen","Präsidentschaftsübergabe","x"]
["2009-09-22","Nöcker"]
["2009-10-20","Schmidt","In Zahnarztpraxis"]
["2009-12-01","Keysers"]
["2010-01-12","Lücke"]
["2010-02-09"]
["2010-03-09","Johannknecht"]
["2010-05-11","Bartels"]
["2010-06-15","Huttrop-Hage"]
["2010-07-10","Thönissen","Präsidentschaftsübergabe","x"]
["2010-09-28","Thönissen","anläßlich seines 55. Geburtstages"]
["2010-10-19","Krause"]
["2010-11-23","Preising"]
["2011-01-25","Jacoby"]
["2011-02-22","Liemke"]
["2011-05-24","Krings"]
["2011-06-21","Thiele"]
["2011-09-27","Martiny"]
["2011-10-25","Tack"]
["2011-11-22","Bartels"]
["2012-01-24","Lücke"]
["2012-02-28","Richard"]
["2012-04-17","Wellmann"]
["2012-05-22","Friemuth"]
["2012-06-22","Martiny","Lionsdamen","x"]
["2012-07-27","Keysers","Präsidentschaftsübergabe: Ein sommerliches Gartenfest","x"]
["2012-08-28","Nöcker"]
["2012-09-11","Gnisa"]
["2012-10-09","Wiedeking"]
["2012-11-20","Schreckenberg"]
["2013-01-29","Ortner"]
["2013-02-26","Ammenwerth"]
["2013-03-26","Tack"]
["2013-04-23","Joepen"]
["2013-05-28","Brors"]
["2013-06-25","Vollbach"]
["2013-07-09","Knickenberg","Präsidentschaftsübergabe"]
["2013-09-24","Plonka"]
["2013-10-22","Martiny"]
["2013-11-19","Krause"]
["2014-01-14","Tack"]
["2014-02-11","Johannknecht"]
["2014-03-25","Henning"]
["2014-05-06","Schmidt"]
["2014-06-03","Friemuth"]
["2014-08-26","Schreckenberg"]
["2014-09-30","Joepen"]
["2014-10-28","Wiedeking"]
["2014-11-25","Thiele"]
["2015-01-27","Feldmann"]
["2015-02-24","Keysers"]
["2015-03-24","Brors"]
["2015-04-21","Bartels"]
["2015-05-26","Baur"]
["2015-06-23","Bee"]
["2015-08-25","Plonka"]
["2015-09-22","Krings"]
["2015-11-10","Krause"]
["2016-01-12","Vollbach"]
["2016-02-09","Ammenwerth"]
["2016-03-08","Ortner"]
["2016-04-05","Thönissen"]
["2016-05-17","Martiny"]
["2016-09-20","Krings"]
["2017-09-26","Gnisa"]
["2017-11-21","Krause"]
["2018-01-23","Tack"]
["2018-02-20","Wiedeking"]
["2018-04-24","Plonka"]
["2018-05-22","Wellmann"]
["2018-08-28","Joepen"]
["2018-09-25","Bartels"]
["2018-10-23","Ammenwerth"]
["2019-02-05","Baur"]

{"sheet":"Ausw PA","index":9,"n_rows":50,"n_cols":7,"rows_kept":50,"cut":false,"hidden":false,"merged":[]}
[null,"Mitglied seit",{"$f":"\"Mitgliedsjahre bis Ende \"&YEAR(TODAY())","v":"Mitgliedsjahre bis Ende 2023"},"Private Abende","alle x Jahre eingeladen"]
[null,null,null,{"$f":"SUM(D3:D41)","v":262}]
["Ammenwerth",1983,{"$f":"YEAR(TODAY())-B3+1","v":41},{"$f":"COUNTIF('Priv. Ver.'!$B:$B,$A3)","v":13},{"$f":"IF(D3>0,ROUND(C3/D3,0),\"\")","v":3},null,"Sortieren nach Namen"]
["Bartels",1993,31,{"$f":"COUNTIF('Priv. Ver.'!$B:$B,$A4)","v":11},3]
["Baur",2013,11,{"$f":"COUNTIF('Priv. Ver.'!$B:$B,$A5)","v":2},6]
["Bee",2013,11,{"$f":"COUNTIF('Priv. Ver.'!$B:$B,$A6)","v":1},11]
["Brors",2011,13,{"$f":"COUNTIF('Priv. Ver.'!$B:$B,$A7)","v":2},7]
["Feldmann",1981,43,{"$f":"COUNTIF('Priv. Ver.'!$B:$B,$A8)","v":10},4]
["Friemuth",1981,43,{"$f":"COUNTIF('Priv. Ver.'!$B:$B,$A9)","v":18},2]
["Gnisa",2009,15,{"$f":"COUNTIF('Priv. Ver.'!$B:$B,$A10)","v":2},8]
["Hollmann",2017,7,{"$f":"COUNTIF('Priv. Ver.'!$B:$B,$A11)","v":0},""]
["Jacoby",1981,43,{"$f":"COUNTIF('Priv. Ver.'!$B:$B,$A12)","v":10},4]
["Joepen",1999,25,{"$f":"COUNTIF('Priv. Ver.'!$B:$B,$A13)","v":6},4]
["Johannknecht",1981,43,{"$f":"COUNTIF('Priv. Ver.'!$B:$B,$A14)","v":12},4]
["Käter",2018,6,{"$f":"COUNTIF('Priv. Ver.'!$B:$B,$A15)","v":0},""]
["Keysers",2006,18,{"$f":"COUNTIF('Priv. Ver.'!$B:$B,$A16)","v":4},5]
["Knickenberg",1995,29,{"$f":"COUNTIF('Priv. Ver.'!$B:$B,$A17)","v":5},6]
["Krause",1981,43,{"$f":"COUNTIF('Priv. Ver.'!$B:$B,$A18)","v":14},3]
["Krings",1997,27,{"$f":"COUNTIF('Priv. Ver.'!$B:$B,$A19)","v":7},4]
["Kuhlenkamp",1981,43,{"$f":"COUNTIF('Priv. Ver.'!$B:$B,$A20)","v":5},9]
["Liemke",1981,43,{"$f":"COUNTIF('Priv. Ver.'!$B:$B,$A21)","v":13},3]
["Lücke",1981,43,{"$f":"COUNTIF('Priv. Ver.'!$B:$B,$A22)","v":11},4]
["Martiny",1992,32,{"$f":"COUNTIF('Priv. Ver.'!$B:$B,$A23)","v":7},5]
["Nöcker",1981,43,{"$f":"COUNTIF('Priv. Ver.'!$B:$B,$A24)","v":14},3]
["Oberheide",1981,43,{"$f":"COUNTIF('Priv. Ver.'!$B:$B,$A25)","v":5},9]
["Ortner",1985,39,{"$f":"COUNTIF('Priv. Ver.'!$B:$B,$A26)","v":8},5]
["Plonka",2011,13,{"$f":"COUNTIF('Priv. Ver.'!$B:$B,$A27)","v":3},4]
["Plückebaum",2019,5,{"$f":"COUNTIF('Priv. Ver.'!$B:$B,$A28)","v":0},""]
["Preising",2001,23,{"$f":"COUNTIF('Priv. Ver.'!$B:$B,$A29)","v":3},8]
["Richard",1991,33,{"$f":"COUNTIF('Priv. Ver.'!$B:$B,$A30)","v":7},5]
["Rimrod",2015,9,{"$f":"COUNTIF('Priv. Ver.'!$B:$B,$A31)","v":0},""]
["Schmidt",2002,22,{"$f":"COUNTIF('Priv. Ver.'!$B:$B,$A32)","v":3},7]
["Schreckenberg",1997,27,{"$f":"COUNTIF('Priv. Ver.'!$B:$B,$A33)","v":8},3]
["Tack",1981,43,{"$f":"COUNTIF('Priv. Ver.'!$B:$B,$A34)","v":10},4]
["Thiele",1986,38,{"$f":"COUNTIF('Priv. Ver.'!$B:$B,$A35)","v":8},5]
["Thönissen",2001,23,{"$f":"COUNTIF('Priv. Ver.'!$B:$B,$A36)","v":4},6]
["Vollbach",1994,30,{"$f":"COUNTIF('Priv. Ver.'!$B:$B,$A37)","v":11},3]
["Wellmann",1987,37,{"$f":"COUNTIF('Priv. Ver.'!$B:$B,$A38)","v":11},3]
["Wiedeking",1987,37,{"$f":"COUNTIF('Priv. Ver.'!$B:$B,$A39)","v":8},5]
["Wieneke",1988,36,{"$f":"COUNTIF('Priv. Ver.'!$B:$B,$A40)","v":6},{"$f":"IF(D39>0,ROUND(C39/D39,0),\"\")","v":5}]
[]
[]
[{"$f":"COUNTA(A3:A41)&\" Mitglieder\"","v":"38 Mitglieder"}]
[null,null,"max",{"$f":"MAX($D$3:$D$43)","v":18}]
[null,null,"min",{"$f":"MIN($D$3:$D$43)","v":0}]
[]
[]
["Hahn",2001,{"$f":"YEAR(TODAY())-B48+1","v":23},{"$f":"COUNTIF('Priv. Ver.'!$B:$B,$A48)","v":3},{"$f":"IF(D48>0,ROUND(C48/D48,0),\"\")","v":8}]
["Huttrop-Hage",2006,{"$f":"YEAR(TODAY())-B49+1","v":18},{"$f":"COUNTIF('Priv. Ver.'!$B:$B,$A49)","v":2},{"$f":"IF(D49>0,ROUND(C49/D49,0),\"\")","v":9}]
["Henning",1981,{"$f":"YEAR(TODAY())-B50+1","v":43},{"$f":"COUNTIF('Priv. Ver.'!$B:$B,$A50)","v":13},{"$f":"IF(D50>0,ROUND(C50/D50,0),\"\")","v":3}]

{"sheet":"Gr. Ver.","index":10,"n_rows":0,"n_cols":0,"rows_kept":0,"cut":false,"hidden":false,"merged":[]}

{"sheet":"Gr. Damenbet.","index":11,"n_rows":0,"n_cols":0,"rows_kept":0,"cut":false,"hidden":false,"merged":[]}

{"sheet":"Struk. Ver.","index":12,"n_rows":36,"n_cols":9,"rows_kept":36,"cut":false,"hidden":false,"merged":[]}
["Struktur der Veranstaltungen bis zum 30.6.2018"]
["lt. Blatt offizielle Veranstaltungen",{"$f":"'off. Ve.'!C2","v":495}]
[]
[null,null,null,null,null,"Zusammenfassung"]
["Veranstaltungen",{"$f":"SUM(B7:B36)","v":463},null,"Offizielle Veranstaltungen",{"$f":"B2","v":495},"Struktur der Veranstaltungen"]
[null,null,null,"Private Veranstaltungen",{"$f":"'Priv. Ver.'!A2","v":319}]
["Vortrag",{"$f":"COUNTIF('off. Ve.'!$D$5:$D$500,A7)","v":177},null,"gesamt",{"$f":"SUM(E5:E6)","v":814},{"$f":"SUM(F9:F17)","v":782},"Veranstaltungen","Diff",{"$f":"E7-F7","v":32}]
["Besichtigung",{"$f":"COUNTIF('off. Ve.'!$D$5:$D$500,A8)","v":93}]
["MV",{"$f":"COUNTIF('off. Ve.'!$D$5:$D$500,A9)","v":71},null,null,null,{"$f":"E6","v":319},"Private Veranstaltungen"]
["Weihnachtsfeier",{"$f":"COUNTIF('off. Ve.'!$D$5:$D$500,A10)","v":33},null,null,null,{"$f":"B$7","v":177},"Vortrag"]
["Fahrt",{"$f":"COUNTIF('off. Ve.'!$D$5:$D$500,A11)","v":18},null,null,null,{"$f":"$B$8","v":93},"Besichtigung"]
["Ausflug",{"$f":"COUNTIF('off. Ve.'!$D$5:$D$500,A12)","v":13},null,null,null,{"$f":"B$9","v":71},"Mitgliederversammlungen"]
["Liboritreffen",{"$f":"COUNTIF('off. Ve.'!$D$5:$D$500,A13)","v":13},null,null,null,{"$f":"$B$10+$B$18","v":35},"Weihnachtsfeiern+Weihnachtsbaumschlagen"]
["Gründungskreis ",{"$f":"COUNTIF('off. Ve.'!$D$5:$D$500,A14)","v":7},null,null,null,{"$f":"$B$11+$B$12","v":31},"Fahrten und Ausflüge"]
["Kochen bei PESAG",{"$f":"COUNTIF('off. Ve.'!$D$5:$D$500,A15)","v":5},null,null,null,{"$f":"$B$13","v":13},"Liboritreffen"]
["Präsidentschaftsübergabe",{"$f":"COUNTIF('off. Ve.'!$D$5:$D$500,A16)","v":8},null,null,null,{"$f":"$B$15","v":5},"Kochen bei PESAG"]
["Activity Abschluß",{"$f":"COUNTIF('off. Ve.'!$D$5:$D$500,A17)","v":3},null,null,null,{"$f":"B14+B16+B17+B19+B20+B21+B22+B23+B24+B25+B26+B27+B28+B29+B30+B31+B32+B33+B34+B35+B36","v":38},"Sonstige"]
["Weihnachtsbaumschlagen",{"$f":"COUNTIF('off. Ve.'!$D$5:$D$500,A18)","v":2}]
["Golfturnier",{"$f":"COUNTIF('off. Ve.'!$D$5:$D$500,A19)","v":1},null,null,null,{"$f":"SUM(F9:F18)","v":782}]
["Herrenabend",{"$f":"COUNTIF('off. Ve.'!$D$5:$D$500,A20)","v":1}]
["Informationen über Lions im Schweizer Haus",{"$f":"COUNTIF('off. Ve.'!$D$5:$D$500,A21)","v":1}]
["interne Gründungsversammlung",{"$f":"COUNTIF('off. Ve.'!$D$5:$D$500,A22)","v":1}]
["offizielle Gründungsversammlung",{"$f":"COUNTIF('off. Ve.'!$D$5:$D$500,A23)","v":1}]
["Charterfeier",{"$f":"COUNTIF('off. Ve.'!$D$5:$D$500,A24)","v":1}]
["Besuch LC Aalsmeer",{"$f":"COUNTIF('off. Ve.'!$D$5:$D$500,A25)","v":1}]
["Konzertbesuch",{"$f":"COUNTIF('off. Ve.'!$D$5:$D$500,A26)","v":2}]
["Valentins Redoute",{"$f":"COUNTIF('off. Ve.'!$D$5:$D$500,A27)","v":1}]
["10-jährige Charterfeier unseres Clubs",{"$f":"COUNTIF('off. Ve.'!$D$5:$D$500,A28)","v":1}]
["20 Jahre-Jubiläumsfeier",{"$f":"COUNTIF('off. Ve.'!$D$5:$D$500,A29)","v":1}]
["25 Jahre Jubiläumsball",{"$f":"COUNTIF('off. Ve.'!$D$5:$D$500,A30)","v":1}]
["Stadtführung",{"$f":"COUNTIF('off. Ve.'!$D$5:$D$500,A31)","v":1}]
["Theaterbesuch",{"$f":"COUNTIF('off. Ve.'!$D$5:$D$500,A32)","v":1}]
["EON-Reiter CUP",{"$f":"COUNTIF('off. Ve.'!$D$5:$D$500,A33)","v":1}]
["Auftakt Activity",{"$f":"COUNTIF('off. Ve.'!$D$5:$D$500,A34)","v":2}]
["Mit Friedrich Spee durch das Kirchenjahr Orgelkonzert in der Marktkirche",{"$f":"COUNTIF('off. Ve.'!$D$5:$D$500,A35)","v":1}]
["Grünkohlessen",1]

{"sheet":"Vortr.-Damenbet.","index":13,"n_rows":49,"n_cols":9,"rows_kept":49,"cut":false,"hidden":false,"merged":[[0,0,0,3],[0,4,0,7]]}
["Vorträge",null,null,null,"Damenbeteiligung"]
[null,"seit","Mitglieds-jahre","Vorträge bei Veran-staltungen",null,"Veranstaltungen gesamt","Anzahl der offiziellen Veranstaltungen mit Damen"]
[null,null,null,null,"Jahr",{"$f":"SUM(F4:F46)","v":478},{"$f":"SUM(G5:G36)","v":222}]
["Ammenwerth",1983,{"$f":"YEAR(TODAY())-B4+1","v":41},{"$f":"COUNTIF('off. Ve.'!$E:$E,A4)","v":3},1980,{"$f":"COUNTIF('off. Ve.'!$C$5:$C$364,E4)","v":1}]
["Bartels",1993,31,{"$f":"COUNTIF('off. Ve.'!$E:$E,A5)","v":1},1981,{"$f":"COUNTIF('off. Ve.'!$C$5:$C$364,E5)","v":14},{"$f":"COUNTA('off. Ve.'!G7:G19)","v":3},{"$f":"G5/F5","v":0.21428571428571427}]
["Baur",2013,11,{"$f":"COUNTIF('off. Ve.'!$E:$E,A6)","v":0},1982,{"$f":"COUNTIF('off. Ve.'!$C$5:$C$364,E6)","v":12},{"$f":"COUNTA('off. Ve.'!G20:G31)","v":3},0.25]
["Bee",2013,11,{"$f":"COUNTIF('off. Ve.'!$E:$E,A7)","v":0},1983,{"$f":"COUNTIF('off. Ve.'!$C$5:$C$364,E7)","v":10},{"$f":"COUNTA('off. Ve.'!G32:G41)","v":4},0.4]
["Brors",2011,13,null,1984,{"$f":"COUNTIF('off. Ve.'!$C$5:$C$364,E8)","v":12},{"$f":"COUNTA('off. Ve.'!G42:G53)","v":6},0.5]
["Feldmann",1981,43,{"$f":"COUNTIF('off. Ve.'!$E:$E,A9)","v":5},1985,{"$f":"COUNTIF('off. Ve.'!$C$5:$C$364,E9)","v":14},{"$f":"COUNTA('off. Ve.'!G54:G67)","v":7},0.5]
["Friemuth",1981,43,{"$f":"COUNTIF('off. Ve.'!$E:$E,A10)","v":1},1986,{"$f":"COUNTIF('off. Ve.'!$C$5:$C$364,E10)","v":17},{"$f":"COUNTA('off. Ve.'!G68:G84)","v":7},0.41176470588235292]
["Gnisa",2009,15,{"$f":"COUNTIF('off. Ve.'!$E:$E,A11)","v":1},1987,{"$f":"COUNTIF('off. Ve.'!$C$5:$C$364,E11)","v":14},{"$f":"COUNTA('off. Ve.'!G85:G98)","v":6},0.42857142857142855]
["Hollmann",2017,7,null,1988,{"$f":"COUNTIF('off. Ve.'!$C$5:$C$364,E12)","v":11},{"$f":"COUNTA('off. Ve.'!G99:G109)","v":3},0.27272727272727271]
["Hahn",2001,23,{"$f":"COUNTIF('off. Ve.'!$E:$E,A13)","v":1},1989,{"$f":"COUNTIF('off. Ve.'!$C$5:$C$364,E13)","v":12},{"$f":"COUNTA('off. Ve.'!G110:G121)","v":5},0.41666666666666669]
["Henning",1981,43,{"$f":"COUNTIF('off. Ve.'!$E:$E,A14)","v":1},1990,{"$f":"COUNTIF('off. Ve.'!$C$5:$C$364,E14)","v":12},{"$f":"COUNTA('off. Ve.'!G122:G133)","v":5},0.41666666666666669]
["Huttrop-Hage",2006,18,{"$f":"COUNTIF('off. Ve.'!$E:$E,A15)","v":1},1991,{"$f":"COUNTIF('off. Ve.'!$C$5:$C$364,E15)","v":13},{"$f":"COUNTA('off. Ve.'!G134:G146)","v":4},0.30769230769230771]
["Jacoby",1981,43,{"$f":"COUNTIF('off. Ve.'!$E:$E,A16)","v":4},1992,{"$f":"COUNTIF('off. Ve.'!$C$5:$C$364,E16)","v":12},{"$f":"COUNTA('off. Ve.'!G147:G158)","v":5},0.41666666666666669]
["Joepen",1999,25,{"$f":"COUNTIF('off. Ve.'!$E:$E,A17)","v":1},1993,{"$f":"COUNTIF('off. Ve.'!$C$5:$C$364,E17)","v":10},{"$f":"COUNTA('off. Ve.'!G159:G168)","v":2},0.2]
["Johannknecht",1981,43,{"$f":"COUNTIF('off. Ve.'!$E:$E,A18)","v":1},1994,{"$f":"COUNTIF('off. Ve.'!$C$5:$C$364,E18)","v":12},{"$f":"COUNTA('off. Ve.'!G169:G180)","v":7},0.58333333333333337]
["Käter",2018,6,null,1995,{"$f":"COUNTIF('off. Ve.'!$C$5:$C$364,E19)","v":11},{"$f":"COUNTA('off. Ve.'!G181:G191)","v":7},0.63636363636363635]
["Keysers",2006,18,{"$f":"COUNTIF('off. Ve.'!$E:$E,A20)","v":1},1996,{"$f":"COUNTIF('off. Ve.'!$C$5:$C$364,E20)","v":12},{"$f":"COUNTA('off. Ve.'!G192:G203)","v":7},0.58333333333333337]
["Knickenberg",1995,29,{"$f":"COUNTIF('off. Ve.'!$E:$E,A21)","v":0},1997,{"$f":"COUNTIF('off. Ve.'!$C$5:$C$364,E21)","v":9},{"$f":"COUNTA('off. Ve.'!G204:G212)","v":3},0.33333333333333331]
["Krause",1981,43,{"$f":"COUNTIF('off. Ve.'!$E:$E,A22)","v":4},1998,{"$f":"COUNTIF('off. Ve.'!$C$5:$C$364,E22)","v":12},{"$f":"COUNTA('off. Ve.'!G213:G224)","v":6},0.5]
["Krings",1997,27,{"$f":"COUNTIF('off. Ve.'!$E:$E,A23)","v":0},1999,{"$f":"COUNTIF('off. Ve.'!$C$5:$C$364,E23)","v":11},{"$f":"COUNTA('off. Ve.'!G225:G235)","v":7},0.63636363636363635]
["Kuhlenkamp",1981,43,{"$f":"COUNTIF('off. Ve.'!$E:$E,A24)","v":2},2000,{"$f":"COUNTIF('off. Ve.'!$C$5:$C$364,E24)","v":13},{"$f":"COUNTA('off. Ve.'!G236:G248)","v":8},0.61538461538461542]
["Liemke",1981,43,{"$f":"COUNTIF('off. Ve.'!$E:$E,A25)","v":4},2001,{"$f":"COUNTIF('off. Ve.'!$C$5:$C$364,E25)","v":12},{"$f":"COUNTA('off. Ve.'!G249:G260)","v":9},0.75]
["Lücke",1981,43,{"$f":"COUNTIF('off. Ve.'!$E:$E,A26)","v":3},2002,{"$f":"COUNTIF('off. Ve.'!$C$5:$C$364,E26)","v":14},{"$f":"COUNTA('off. Ve.'!G261:G274)","v":14},1]
["Martiny",1992,32,{"$f":"COUNTIF('off. Ve.'!$E:$E,A27)","v":2},2003,{"$f":"COUNTIF('off. Ve.'!$C$5:$C$364,E27)","v":11},{"$f":"COUNTA('off. Ve.'!G275:G285)","v":9},0.81818181818181823]
["Nöcker",1981,43,{"$f":"COUNTIF('off. Ve.'!$E:$E,A28)","v":10},2004,{"$f":"COUNTIF('off. Ve.'!$C$5:$C$364,E28)","v":13},{"$f":"COUNTA('off. Ve.'!G286:G298)","v":11},0.84615384615384615]
["Oberheide",1981,43,{"$f":"COUNTIF('off. Ve.'!$E:$E,A29)","v":3},2005,{"$f":"COUNTIF('off. Ve.'!$C$5:$C$364,E29)","v":10},{"$f":"COUNTA('off. Ve.'!G299:G308)","v":7},0.7]
["Ortner",1985,39,{"$f":"COUNTIF('off. Ve.'!$E:$E,A30)","v":5},2006,{"$f":"COUNTIF('off. Ve.'!$C$5:$C$364,E30)","v":13},{"$f":"COUNTA('off. Ve.'!G309:G321)","v":10},0.76923076923076927]
["Plonka",2011,13,null,2007,{"$f":"COUNTIF('off. Ve.'!$C$5:$C$364,E31)","v":12},{"$f":"COUNTA('off. Ve.'!G322:G333)","v":11},0.91666666666666663]
["Preising",2001,23,{"$f":"COUNTIF('off. Ve.'!$E:$E,A32)","v":0},2008,{"$f":"COUNTIF('off. Ve.'!$C$5:$C$364,E32)","v":14},{"$f":"COUNTA('off. Ve.'!G334:G347)","v":10},0.7142857142857143]
["Richard",1991,33,{"$f":"COUNTIF('off. Ve.'!$E:$E,A33)","v":5},2009,{"$f":"COUNTIF('off. Ve.'!$C$5:$C$500,E33)","v":11},{"$f":"COUNTA('off. Ve.'!G348:G358)","v":7},0.63636363636363635]
["Rimrod",2015,9,null,2010,{"$f":"COUNTIF('off. Ve.'!$C$5:$C$500,E34)","v":11},{"$f":"COUNTA('off. Ve.'!G359:G369)","v":7},{"$f":"IF(F34>0,G34/F34,\"\")","v":0.63636363636363635},"Rückgang, weil die MV nicht mehr mit anschließendem Vortrag, zu dem auch die Damen kamen"]
["Schmidt",2002,22,{"$f":"COUNTIF('off. Ve.'!$E:$E,A35)","v":1},2011,{"$f":"COUNTIF('off. Ve.'!$C$5:$C$500,E35)","v":14},{"$f":"COUNTA('off. Ve.'!G370:G383)","v":12},0.8571428571428571]
["Schreckenberg",1997,27,{"$f":"COUNTIF('off. Ve.'!$E:$E,A36)","v":1},2012,{"$f":"COUNTIF('off. Ve.'!$C$5:$C$500,E36)","v":12},{"$f":"COUNTA('off. Ve.'!G384:G395)","v":10},0.83333333333333337]
["Tack",1981,43,{"$f":"COUNTIF('off. Ve.'!$E:$E,A37)","v":2},2013,{"$f":"COUNTIF('off. Ve.'!$C$5:$C$500,E37)","v":12},{"$f":"COUNTA('off. Ve.'!G396:G407)","v":10},0.83333333333333337]
["Thiele",1986,38,{"$f":"COUNTIF('off. Ve.'!$E:$E,A38)","v":4},2014,{"$f":"COUNTIF('off. Ve.'!$C$5:$C$500,E38)","v":12},{"$f":"COUNTA('off. Ve.'!G408:G419)","v":10},0.83333333333333337]
["Thönissen",2001,23,{"$f":"COUNTIF('off. Ve.'!$E:$E,A39)","v":5},2015,{"$f":"COUNTIF('off. Ve.'!$C$5:$C$500,E39)","v":12},{"$f":"COUNTA('off. Ve.'!G420:G433)","v":11},0.91666666666666663]
["Vollbach",1994,30,{"$f":"COUNTIF('off. Ve.'!$E:$E,A40)","v":1},2016,{"$f":"COUNTIF('off. Ve.'!$C$5:$C$500,E40)","v":15},{"$f":"COUNTA('off. Ve.'!G434:G448)","v":13},0.8666666666666667]
["Wellmann",1987,37,{"$f":"COUNTIF('off. Ve.'!$E:$E,A41)","v":2},2017,{"$f":"COUNTIF('off. Ve.'!$C$5:$C$500,E41)","v":9},{"$f":"COUNTA('off. Ve.'!G449:G464)","v":6},0.66666666666666663]
["Wiedeking",1987,37,{"$f":"COUNTIF('off. Ve.'!$E:$E,A42)","v":1},2018,{"$f":"COUNTIF('off. Ve.'!$C$5:$C$500,E42)","v":17}]
["Wieneke",1988,36,{"$f":"COUNTIF('off. Ve.'!$E:$E,A43)","v":2},2019,{"$f":"COUNTIF('off. Ve.'!$C$5:$C$500,E43)","v":10}]
[]
[]
[null,null,null,null,"Mittelwert",null,null,{"$f":"AVERAGE(H5:H30)","v":0.51948922118605378}]
[null,null,"Vorträge Höchstzahl eines LF",{"$f":"MAX(D4:D43)","v":10}]
[{"$f":"COUNTA(A4:A45)","v":40}]
[{"$f":"A48-3","v":37},"Mitgliederzahl"]

{"sheet":"Gästeb.","index":14,"n_rows":0,"n_cols":0,"rows_kept":0,"cut":false,"hidden":false,"merged":[]}

{"sheet":"Merk-Würdiges","index":15,"n_rows":35,"n_cols":5,"rows_kept":35,"cut":false,"hidden":false,"merged":[]}
["1982-06-18","Charternight LC Weserbergland","L Wieneke Gründungspräsident"]
[1982,"Aktion gem. mit Rotary","Apell für verstärkte Lehrlingsausbildung"]
[null,"Auszeichnungen unserer Mitglieder"]
[1982,"Kruse","Charter Monarch 20 Years",null,"er  beschließt einen Brief an den Präsidenten mit \"With Lionistic Greetings\""]
[]
["Jacoby","Der Lions-Activitywagen steht bis zum Wechsel auf den Domplatz (2005?) in der Westernsraße gegenüber dem Geschäft Jacoby. Er spendiert uns den nötigen Strom und das Wasser"]
["Liemke","stellte von Beginn an einen Wagen für die Activity zur Verfügung mit Transport an jedem Wochenende"]
["Oberheide ","erledigt seit Beginn die Activity-Standorte und Genehmigungen und Getränkebeschaffung"]
[1982,"an Wochenenden: erster Glühweinverkauf mit Hongkuchen; Wagen  jeweils durch L Liemke vorbereitet und transportiert"]
[1983,"das geplante Weihnachtsbaumschlagen mußte abgesagt werden, weil die Forstverwaltung wegen der Diskussion um Sauren Regen und die Entwicklung des Waldes Bedenken hatte"]
[1985,"Wiederaufnahme des Weihnachtsbaumschlagens"]
[1985,"Probleme mit unserem Standort für die Activity; daraufhin wurde die Activity in die Zeit vom 27.1.-1.2.1986 verlegt   Beginn des Schlußverkaufs  L Oberheide heimlicher Activity-Beauftragter"]
[1986,"Ärger um die Kölner Stele: Jeder Club sollte nachträglich das \"Geschenk\" des Lions GD Köln durch eine Spende finanzieren, damit der ruf der Lions-Organisation nicht weiter beschädigt würde"]
[1987,"Fragebogen zum Thema Frauen als Mitglieder in Lions-Clubs Frauen als Clubmitglieder abgelehnt: "]
[null,"Begründung durch den Präsidenten: Wir möchten auch weiterhin offene Gespräche in einer Männerrunde führen. "]
[null,"Durch die Aufnahme von Frauen würden Spannungen in das Clubleben hineingetragen, die zwangsläufig im Verhältnis von Frauen als Mtglieder zu den Ehefrauen begründet wären."]
[1987,"L Nowak Austritt empfohlen, weil wegen beruflicher Veränderung nach Augsburg 5 Jahre keine Teilnahme mehr erfolgte"]
["1988-09-13","die Veranstaltungen des LC werden auf dienstags verlegt (wg. Mittwochs stattfindender Fußballübertragungen??)"]
["Ende 1990","Auf Initiative von Gundi Liemke fahren Gisela Thiele und Roswitha Dinger nach Rumänien 750 Care Pakete"]
[null,"Gundi Liemke organisiert eine Fahrt zur Kunstinsel Homroich","http://www.inselhombroich.de/"]
[]
[1999,"werden bei der Activity erstmals Gutscheine im Wert von DM 10 angeboten, die am Stand eingelöst werden können."]
[]
[2006,"P Hahn, Jacoby und Nöcker bereiten den Jubiläumsball im Bürgerhaus Schloß-Neuhaus vor."]
[null,"Hierbei verwandelt Ellen Jacoby den nüchternen Bürgersaal in einen stimmungsvollen Ballsaal, ohne daß dem Lions-Club Kosten entstehen."]
[]
[]
[]
[]
[null,"Zonen oder Region Chairman "]
["1992/93","Wellmann Zonenchairman"]
["???","Bartels"]
[]
[2001,"erste gemeinsame Activity mit Drei Hasen"]
["?","LEO-Club von bis"]

{"sheet":"ehemalige","index":16,"n_rows":28,"n_cols":5,"rows_kept":28,"cut":false,"hidden":false,"merged":[]}
[]
["Frühere Mitglieder unseres Clubs ",null,"von ","bis ","Grund  "]
[]
[]
["Daniel, Bernhard †",null,1981,"2004/05","Tod"]
["Dinger",null,1981,"1990/91","Berufl. Veränderung "]
["Eicker, Peter",null,1986,"1997/98 ","keine Angabe "]
["Gnisa, Jens",null,2009,"2021/22","Wechsel nach Detmold"]
["Hahn, Michael","P",2001,"2014/15","Berufl. Veränderung "]
["Heinrichsmeier, Clemens",null,1981,"1997/98","Zeitl. Überlastung"]
["Henning, Hans †","P",1981,"2016/17","Tod"]
["Hohenstein, Klaus",null,1997,"1999/00","Berufl. Veränderung"]
["Hornmann, Klaus †",null,1981,"1998/99","Tod"]
["Huttrop-Hage, Kai",null,2006,"2016/17","Berufl. Veränderung"]
["Johannknecht, Gerd†",null,1981,"2021/22","Tod"]
["Kinne",null,1989,"1992/93 ","Berufl. Veränderung"]
["Kloke"]
["Köhler",null,1981,"1990/91 ","Berufl. Veränderung"]
["Knickenberg, Manfred †","P",1995,"2019/20","Tod"]
["Kruse † 1.5.1990",null,1981,"1989/90","Tod"]
["Kuhlenkamp, Dieter †","P",1981,"2018/19","Tod"]
["Liemke, Hartwig †","P",1981,"2018/19","Tod"]
["Niggemeier",null,2001,"2006/07 ","Gründung des LC Salzkotten"]
["Niestendietrich",null,1987,"1993/94 ","Zeitl. Überlastung "]
["Nowak",null,1981,"1986/87 ","Berufl. Veränderung"]
["Schlewing",null,1981,"1981/82 ","Berufl. Veränderung"]
["Tödt",null,1984,"1987/88 ","Berufl. Veränderung"]
["Tietmeyer",null,1981,"1985/86 ","Berufl. Veränderung"]

{"sheet":"wichtige MV","index":17,"n_rows":13,"n_cols":4,"rows_kept":13,"cut":false,"hidden":false,"merged":[]}
["Protokolle von Mitgliederversammlungen"]
[]
[null,"des Clubs",null,"des Förder-vereins"]
[]
["2000-10-10","MV","Mitgliederwerbung vornehmlich durch jeweiligen Präsidenten und die drei jüngsten Mitglieder"]
[null,null,"Über einen Antrag, Mitglieder, die sich nicht ordnungsgemäß zu den Veranstaltungen abmelden, namentlich in den Protokollen bzw. Berichten über die Veranstaltungen zu nennen, aus formalen Gründen nicht abgestimmt"]
[null,null,"Hinweis auf beabsichtigte Gründung eines gemischten Clubs"]
[null,"Anschreiben über MV","zu den Clubabenden mit Damen sind auch die Partnerinnen alller Lionsfreunde herzlich eingeladen "]
["2001-04-03","MV","Erinnerung: angetragene Lionsämter können nur bei wichtigem Grund abgelehnt werden"]
[null,null,"Ämterspiegel ausgeteilt"]
[null,"MV",null,"FV"]
["2001-03-12","MV","Neufassung des Artikels 11 der Clubsatzung Neuaufnahmen"]
["2001-11-13"]